{"text_format":"1","workbook":"xlsx","n_sheets":6,"sheets":["Erwärmung","Pab_Indoor-Gehäuse","Pab_Outdoor-Gehäuse","Pv_Einbaugeräte","Tabelle 101 (61439-2, -3)","Legende"],"not_rendered":{"charts":0,"images":6,"macros":0,"external_links":3,"defined_names":409,"comments":0,"pivot_tables":0},"unopened":[],"bounds":{"document_bytes":16777216,"sheet_cells":100000,"rows_first":2000,"rows_last":500,"rows_between":2000,"halvings":0,"cell_chars":16384,"cell_head_chars":4096},"cells_cut":0,"cells_raw":0,"read":"whole","date_system":"1900"}

{"sheet":"Erwärmung","index":0,"n_rows":79,"n_cols":13,"rows_kept":79,"cut":false,"hidden":false,"merged":[[38,2,38,6],[39,2,39,6],[40,2,40,6],[41,2,41,6],[36,7,36,8],[38,7,38,8],[39,7,39,8],[40,7,40,8],[41,7,41,8],[35,7,35,8],[16,0,23,0],[37,7,37,8],[0,1,0,4],[1,1,1,4],[2,1,2,4],[3,1,3,4],[7,1,7,3],[8,1,8,3],[9,1,9,3],[28,2,28,4],[29,2,29,4],[30,2,30,4],[36,2,36,6],[37,2,37,6],[52,6,52,7],[53,6,53,7],[47,6,47,7],[48,6,48,7],[49,6,49,7],[50,6,50,7],[51,6,51,7]]}
["Hersteller:"]
[null,"Mustermann"]
[null,"in Musterhausen"]
[]
[]
[]
["Bauartnachweis der zulässigen Erwärmung nach DIN EN 61 439-1 Abschnitt 10.10"]
["Kunde:","xx",null,null,"Kom. Nr.:",123456]
[null,"yy",null,null,"Pos. Nr.:","01.01.01."]
[null,"zz"]
["Max. Schrankinnentemperatur",null,null,"55°C"]
["Max. Umgebungstemperatur",null,null,"35°C"]
["Temperaturdifferenz zur Wärmeableitung",null,null,"20K",null,"= bitte diese Punkte manuel ausfüllen."]
["1. installierte Verlustleistung der Einbaugeräte"]
[null,"Pos.","Anzahl","Hersteller","Typ","Beschreibung","In / A","Derating","InC / A","Tab 101","Pv alle Pole / Watt","Σ Pv / Watt"]
["Einspeisung","E 1",null,null,null,null,null,0.8,{"$f":"G16*H16","v":0},null,null,{"$f":"IFERROR((K16*(I16*J16/G16)^2)*C16,\"0\")","v":"0"}]
["Abgänge","A 1",null,null,null,null,null,0.8,{"$f":"G17*H17","v":0},null,null,"0"]
[null,"A 2",null,null,null,null,null,0.8,0,null,null,{"$f":"IFERROR((K18*(I18*J18/G18)^2)*C18,\"0\")","v":"0"}]
[null,"A 3",null,null,null,null,null,0.8,0,null,null,{"$f":"IFERROR((K19*(I19*J19/G19)^2)*C19,\"0\")","v":"0"}]
[null,"A 4",null,null,null,null,null,0.8,0,null,null,"0"]
[null,"A 5",null,null,null,null,"",0.8,0,null,null,"0"]
[null,"A 6",null,null,null,null,"",0.8,0,null,null,"0"]
[null,"A 7",null,null,null,null,"",0.8,0,null,null,"0"]
[null,"A8",null,null,null,null,"",0.8,0,null,null,"0"]
[null,null,null,null,null,"Summe installierte Verlustleistung der Einbaugeräte (W)",null,null,null,null,null,{"$f":"SUM(L16:L24)","v":0}]
[]
["2. installierte Verlustleistung der Sammelschienen - 3 Phasig"]
["Pos.","Länge","Beschreibung",null,null,null,"In / A","Derating","InC / A","Einspeisung\nInC / A","Pv / Watt","Σ Pv/ Watt"]
[1,null,"Sammelschiene 5-polig",null,null,null,null,0.8,{"$f":"G29*H29","v":0},null,null,{"$f":"IF(B29>0,B29*K29*(J29/G29)^2,0)","v":0}]
[2,null,"Sammelschiene 5-polig",null,null,null,null,0.8,{"$f":"G30*H30","v":0},null,null,{"$f":"IF(B30>0,B30*K30*(J30/G30)^2,0)","v":0}]
[3,null,"Sammelschiene 5-polig",null,null,null,null,0.8,0,null,null,0]
[null,null,null,null,null,"Summe installierte Verlustleistung der Sammelschienen (W)",null,null,null,null,null,{"$f":"SUM(L29:L31)","v":0}]
[]
["3. abstrahlbare Verlustleistung der Gehäuse / Schränke"]
["ursprünglicher Hersteller:",null,null,null,null,null,"System:"]
["Pos.","Anzahl","Beschreibung",null,null,null,null,"Abmessungen",null,null,"Pab/ Watt","Σ Pab/ Watt"]
[1,null,null,null,null,null,null,null,null,null,null,{"$f":"K37*B37","v":0}]
[2,null,null,null,null,null,null,null,null,null,null,0]
[3,null,null,null,null,null,null,null,null,null,null,0]
[4,null,null,null,null,null,null,null,null,null,null,0]
[5,null,null,null,null,null,null,null,null,null,null,0]
[6,null,null,null,null,null,null,null,null,null,null,0]
[null,null,null,null,null,"Summe abstrahlbare Verlustleistung der Gehäuse / Schränke (W)",null,null,null,null,null,{"$f":"SUM(L37:L42)","v":0}]
[]
["4. Berechnung"]
[]
["Pos."]
["1.","Summe installierte Verlustleistung der Geräte",null,null,null,null,{"$f":"L25","v":0}]
["2.","Summe installierte Verlustleistung der Sammelschienen",null,null,null,null,{"$f":"L32","v":0}]
[null,"Anteilige Verdrahtung von Pos. 1+2",null,null,null,null,{"$f":"(G48+G49)*0.2","v":0}]
[null,5,"% Reserve für zusätzlicher Geräte",null,null,null,{"$f":"SUM(G48:H50)*B51/100","v":0}]
[null,null,null,null,null,"Zwischensumme",{"$f":"SUM(G48:H51)","v":0},null,"Watt"]
["3.","Summe abstrahlbare Verlustleistung der Gehäuse / Schränke",null,null,null,null,{"$f":"L43","v":0}]
[null,"Differenz zwischen abstrahlbarer und installierter Verlustleistung",null,null,null,null,{"$f":"G53-G52","v":0},null,"Watt"]
[]
["Bei negativer Differenz ist durch Belüftung oder durch größere Gehäuse die abstrahlbare Verlustleistung zu vergrößern."]
["Eine weitere Maßnahme kann die Verringerung des RDF sein."]
[null,null,null,null,null,null,null,"abstrahlbare Verlustleistung"]
["Berechnung reduzierter RDF: ",null,null,null,null,"RDF =",null,"installierte Verlustleistung"]
[]
["Hinweise:",null,null,null,null,"ABN Festlegung:"]
[null,null,null,null,null,null,"errechneter Hersteller-RDF =",{"$f":"SQRT(G53/G52)","v":{"$error":"#DIV/0!"}}]
[]
[null,"Bemessungsstrom",null,null,null,"Die Anlage ist mit einem RDF von",{"$f":"IF(H62>1,1,(ROUNDDOWN(H62,1)))","v":{"$error":"#DIV/0!"}},"zu betreiben."]
[]
[null,"DERATING: Nach Angaben des Herstellers, jedoch mindestens 0,8 nach DIN EN 61 439 Teil 1."]
[]
[null,"Der Strom InC definiert für die Einspeisung den Wert InA ."]
[]
[null,"Angaben für Stahlblechverteiler ebenso wie für Isolierstoffverteiler in Kastenbauform möglich."]
[]
[null,"Abstrahlbare Verlustleistung laut ursprünglichem Hersteller."]
[]
[null,"Auswahl aus Tabelle 101 DIN EN 61439-2"]
[]
[]
[null,"ABN GmbH"]
[null,"Daimlerstrasse 10-12"]
[null,"D-74196 Neuenstadt am Kocher",null,null,null,null,"www.abn-elektro.de",null,null,null,null,null,"Stand: 2019/04"]

{"sheet":"Pab_Indoor-Gehäuse","index":1,"n_rows":392,"n_cols":8,"rows_kept":392,"cut":false,"hidden":false,"merged":[[379,0,383,0],[379,1,383,1],[379,2,383,2],[379,5,383,5],[379,7,383,7],[388,0,391,0],[384,0,387,0],[384,1,387,1],[388,1,391,1],[384,2,387,2],[388,2,391,2],[388,5,391,5],[384,5,387,5],[369,0,373,0],[369,1,373,1],[369,2,373,2],[369,5,373,5],[369,7,373,7],[374,0,378,0],[374,1,378,1],[374,2,378,2],[374,5,378,5],[374,7,378,7],[359,0,363,0],[359,1,363,1],[359,2,363,2],[359,5,363,5],[359,7,363,7],[364,0,368,0],[364,1,368,1],[364,2,368,2],[364,5,368,5],[364,7,368,7],[349,0,353,0],[349,1,353,1],[349,2,353,2],[349,5,353,5],[349,7,353,7],[354,0,358,0],[354,1,358,1],[354,2,358,2],[354,5,358,5],[354,7,358,7],[339,0,343,0],[339,1,343,1],[339,2,343,2],[339,5,343,5],[339,7,343,7],[344,0,348,0],[344,1,348,1],[344,2,348,2],[344,5,348,5],[344,7,348,7],[333,0,333,7],[334,0,338,0],[334,1,338,1],[334,2,338,2],[334,5,338,5],[334,7,338,7],[298,7,332,7],[304,1,308,1],[304,2,308,2],[304,5,308,5],[310,1,314,1],[310,2,314,2],[310,5,314,5],[316,1,320,1],[316,2,320,2],[316,5,320,5],[263,0,297,0],[263,1,267,1],[263,2,267,2],[263,5,267,5],[293,1,297,1],[293,2,297,2],[293,5,297,5],[298,0,332,0],[298,1,302,1],[298,2,302,2],[298,5,302,5],[322,1,326,1],[322,2,326,2],[322,5,326,5],[328,1,332,1],[328,2,332,2],[328,5,332,5],[263,7,297,7],[269,1,273,1],[269,2,273,2],[269,5,273,5],[275,1,279,1],[275,2,279,2],[249,5,252,5],[254,1,257,1],[254,2,257,2],[254,5,257,5],[259,1,262,1],[259,2,262,2],[259,5,262,5],[275,5,279,5],[281,1,285,1],[281,2,285,2],[281,5,285,5],[287,1,291,1],[287,2,291,2],[287,5,291,5],[215,0,238,0],[215,1,219,1],[215,2,219,2],[215,5,219,5],[239,0,262,0],[239,1,243,1],[239,2,243,2],[239,5,243,5],[239,7,262,7],[245,1,247,1],[245,2,247,2],[245,5,247,5],[249,1,252,1],[249,2,252,2],[215,7,238,7],[221,1,223,1],[221,2,223,2],[221,5,223,5],[225,1,228,1],[225,2,228,2],[235,1,238,1],[235,2,238,2],[235,5,238,5],[174,7,214,7],[225,5,228,5],[230,1,233,1],[230,2,233,2],[230,5,233,5],[186,5,190,5],[192,1,196,1],[192,2,196,2],[192,5,196,5],[198,1,202,1],[198,2,202,2],[198,5,202,5],[174,0,214,0],[174,1,178,1],[174,2,178,2],[174,5,178,5],[180,1,184,1],[180,2,184,2],[180,5,184,5],[186,1,190,1],[186,2,190,2],[204,1,208,1],[204,2,208,2],[204,5,208,5],[210,1,214,1],[210,2,214,2],[210,5,214,5],[133,0,173,0],[133,1,137,1],[133,2,137,2],[133,5,137,5],[133,7,173,7],[139,1,143,1],[139,2,143,2],[139,5,143,5],[145,1,149,1],[145,2,149,2],[163,1,167,1],[163,2,167,2],[163,5,167,5],[169,1,173,1],[169,2,173,2],[169,5,173,5],[145,5,149,5],[151,1,155,1],[151,2,155,2],[151,5,155,5],[157,1,161,1],[157,2,161,2],[157,5,161,5],[92,7,132,7],[98,1,102,1],[98,2,102,2],[98,5,102,5],[104,1,108,1],[104,2,108,2],[104,5,108,5],[110,1,114,1],[110,2,114,2],[110,5,114,5],[69,2,73,2],[69,5,73,5],[87,1,91,1],[87,2,91,2],[87,5,91,5],[92,0,132,0],[92,1,96,1],[92,2,96,2],[92,5,96,5],[116,1,120,1],[116,2,120,2],[116,5,120,5],[122,1,126,1],[122,2,126,2],[122,5,126,5],[128,1,132,1],[128,2,132,2],[128,5,132,5],[25,0,48,0],[25,1,28,1],[25,2,28,2],[25,5,28,5],[49,0,49,7],[50,0,50,7],[51,0,91,0],[51,1,55,1],[51,2,55,2],[51,5,55,5],[51,7,91,7],[57,1,61,1],[57,2,61,2],[57,5,61,5],[75,1,79,1],[75,2,79,2],[75,5,79,5],[81,1,85,1],[81,2,85,2],[81,5,85,5],[63,1,67,1],[63,2,67,2],[63,5,67,5],[69,1,73,1],[25,7,48,7],[30,1,33,1],[30,2,33,2],[30,5,33,5],[35,1,38,1],[35,2,38,2],[12,2,15,2],[12,5,15,5],[17,1,20,1],[17,2,20,2],[17,5,20,5],[22,1,24,1],[22,2,24,2],[22,5,24,5],[35,5,38,5],[40,1,43,1],[40,2,43,2],[40,5,43,5],[45,1,48,1],[45,2,48,2],[45,5,48,5],[3,0,3,7],[4,0,24,0],[4,1,6,1],[4,2,6,2],[4,5,6,5],[4,7,24,7],[8,1,10,1],[8,2,10,2],[8,5,10,5],[12,1,15,1]]}
["Tabelle Gehäuse-System: Angaben zur Wärmeberechnung gemäß DIN EN 61439-1, -2, -3"]
[]
["Schrankart","Hersteller","Schutzart","Typ","B x H\n[mm]","Tiefe\n[mm]","abstrahlbare\nVerlustleistung \nPab / Pzul.\nin Watt\n\n(bei dT = 20K)\nWandaufbau","Bemessungsstrom\nIn [A]"]
["Installations-Flachverteiler"]
["UP/HW-Verteiler, modulare Lieferform, SK II Baureihe UL..  - Leergehäuse","ABN","IP30","UL13X","320 x 520",110,18,125]
[null,null,null,"UL23X","570 x 520",null,30]
[null,null,null,"UL33X","820 x 520",null,44]
[]
[null,"ABN","IP30","UL14X","320 x 670",110,22]
[null,null,null,"UL24X","570 x 670",null,38]
[null,null,null,"UL34X","820 x 670",null,55]
[]
[null,"ABN","IP30","UL15X","320 x 820",110,26]
[null,null,null,"UL25X","570 x 820",null,45]
[null,null,null,"UL35X","820 x 820",null,60]
[null,null,null,"UL45X","1070 x 820",null,75]
[]
[null,"ABN","IP30","UL16X","320 x 970",110,30]
[null,null,null,"UL26X","570 x 970",null,50]
[null,null,null,"UL36X","820 x 970",null,70]
[null,null,null,"UL46X","1070 x 970",null,90]
[]
[null,"ABN","IP30","UL17X","320 x 1120",110,35]
[null,null,null,"UL27X","570 x 1120",null,55]
[null,null,null,"UL37X","820 x 1120",null,75]
["AP-Verteiler, modulare Lieferform, SK II Baureihe RM..  - Leergehäuse","ABN","IP44","ABNRM103","300 x 500",160,21,250]
[null,null,null,"ABNRM203","550 x 500",null,35]
[null,null,null,"ABNRM303","800 x 500",null,49]
[null,null,null,"ABNRM403","1050 x 500",null,62]
[]
[null,"ABN","IP44","ABNRM104","300 x 650",160,26]
[null,null,null,"ABNRM204","550 x 650",null,41]
[null,null,null,"ABNRM304","800 x 650",null,57]
[null,null,null,"ABNRM404","1050 x 650",null,70]
[]
[null,"ABN","IP44","ABNRM105","300 x 800",160,32]
[null,null,null,"ABNRM205","550 x 800",null,47]
[null,null,null,"ABNRM305","800 x 800",null,67]
[null,null,null,"ABNRM405","1050 x 800",null,84]
[]
[null,"ABN","IP44","ABNRM106","300 x 950",160,36]
[null,null,null,"ABNRM206","550 x 950",null,55]
[null,null,null,"ABNRM306","800 x 950",null,73]
[null,null,null,"ABNRM406","1050 x 950",null,99]
[]
[null,"ABN","IP44","ABNRM107","300 x 1100",160,40]
[null,null,null,"ABNRM207","550 x 1100",null,61]
[null,null,null,"ABNRM307","800 x 1100",null,83]
[null,null,null,"ABNRM407","1050 x 1100",null,116]
["Systemgehäuse"]
["Wandgehäuse"]
["Wandgehäuse Baureihe ABNRV, SK I","ABN","IP44","ABNRV103","300 x 500",210,23,400]
[null,null,null,"ABNRV203","550 x 500",null,37]
[null,null,null,"ABNRV303","800 x 500",null,52]
[null,null,null,"ABNRV403","1050 x 500",null,67]
[null,null,null,"ABNRV503","1300 x 500",null,76]
[]
[null,"ABN","IP44","ABNRV104","300 x 650",210,28]
[null,null,null,"ABNRV204","550 x 650",null,44]
[null,null,null,"ABNRV304","800 x 650",null,61]
[null,null,null,"ABNRV404","1050 x 650",null,75]
[null,null,null,"ABNRV504","1300 x 650",null,97]
[]
[null,"ABN","IP44","ABNRV105","300 x 800",210,34]
[null,null,null,"ABNRV205","550 x 800",null,51]
[null,null,null,"ABNRV305","800 x 800",null,72]
[null,null,null,"ABNRV405","1050 x 800",null,90]
[null,null,null,"ABNRV505","1300 x 800",null,116]
[]
[null,"ABN","IP44","ABNRV106","300 x 950",210,39]
[null,null,null,"ABNRV206","550 x 950",null,59]
[null,null,null,"ABNRV306","800 x 950",null,79]
[null,null,null,"ABNRV406","1050 x 950",null,106]
[null,null,null,"ABNRV506","1300 x 950",null,139]
[]
[null,"ABN","IP44","ABNRV107","300 x 1100",210,44]
[null,null,null,"ABNRV207","550 x 1100",null,66]
[null,null,null,"ABNRV307","800 x 1100",null,89]
[null,null,null,"ABNRV407","1050 x 1100",null,123]
[null,null,null,"ABNRV507","1300 x 1100",null,162]
[]
[null,"ABN","IP44","ABNRV108","300 x 1250",210,49]
[null,null,null,"ABNRV208","550 x 1250",null,72]
[null,null,null,"ABNRV308","800 x 1250",null,100]
[null,null,null,"ABNRV408","1050 x 1250",null,140]
[null,null,null,"ABNRV508","1300 x 1250",null,183]
[]
[null,"ABN","IP44","ABNRV109","300 x 1400",210,53]
[null,null,null,"ABNRV209","550 x 1400",null,76]
[null,null,null,"ABNRV309","800 x 1400",null,114]
[null,null,null,"ABNRV409","1050 x 1400",null,159]
[null,null,null,"ABNRV509","1300 x 1400",null,204]
["Wandgehäuse Baureihe ABNRS, SK II","ABN","IP44","ABNRS103","300 x 500",210,23,400]
[null,null,null,"ABNRS203","550 x 500",null,37]
[null,null,null,"ABNRS303","800 x 500",null,52]
[null,null,null,"ABNRS403","1050 x 500",null,67]
[null,null,null,"ABNRS503","1300 x 500",null,76]
[]
[null,"ABN","IP44","ABNRS104","300 x 650",210,28]
[null,null,null,"ABNRS204","550 x 650",null,44]
[null,null,null,"ABNRS304","800 x 650",null,61]
[null,null,null,"ABNRS404","1050 x 650",null,75]
[null,null,null,"ABNRS504","1300 x 650",null,97]
[]
[null,"ABN","IP44","ABNRS105","300 x 800",210,34]
[null,null,null,"ABNRS205","550 x 800",null,51]
[null,null,null,"ABNRS305","800 x 800",null,72]
[null,null,null,"ABNRS405","1050 x 800",null,90]
[null,null,null,"ABNRS505","1300 x 800",null,116]
[]
[null,"ABN","IP44","ABNRS106","300 x 950",210,39]
[null,null,null,"ABNRS206","550 x 950",null,59]
[null,null,null,"ABNRS306","800 x 950",null,79]
[null,null,null,"ABNRS406","1050 x 950",null,106]
[null,null,null,"ABNRS506","1300 x 950",null,139]
[]
[null,"ABN","IP44","ABNRS107","300 x 1100",210,44]
[null,null,null,"ABNRS207","550 x 1100",null,66]
[null,null,null,"ABNRS307","800 x 1100",null,89]
[null,null,null,"ABNRS407","1050 x 1100",null,123]
[null,null,null,"ABNRS507","1300 x 1100",null,162]
[]
[null,"ABN","IP44","ABNRS108","300 x 1250",210,49]
[null,null,null,"ABNRS208","550 x 1250",null,72]
[null,null,null,"ABNRS308","800 x 1250",null,100]
[null,null,null,"ABNRS408","1050 x 1250",null,140]
[null,null,null,"ABNRS508","1300 x 1250",null,183]
[]
[null,"ABN","IP44","ABNRS109","300 x 1400",210,53]
[null,null,null,"ABNRS209","550 x 1400",null,76]
[null,null,null,"ABNRS309","800 x 1400",null,114]
[null,null,null,"ABNRS409","1050 x 1400",null,159]
[null,null,null,"ABNRS509","1300 x 1400",null,204]
["Wandgehäuse Baureihe SE, SK I","ABN","IP54","SE13","300 x 500",225,23,400]
[null,null,null,"SE23","550 x 500",null,37]
[null,null,null,"SE33","800 x 500",null,52]
[null,null,null,"SE43","1050 x 500",null,67]
[null,null,null,"SE53","1300 x 500",null,76]
[]
[null,"ABN","IP54","SE14","300 x 650",225,28]
[null,null,null,"SE24","550 x 650",null,44]
[null,null,null,"SE34","800 x 650",null,61]
[null,null,null,"SE44","1050 x 650",null,75]
[null,null,null,"SE54","1300 x 650",null,97]
[]
[null,"ABN","IP54","SE15","300 x 800",225,34]
[null,null,null,"SE25","550 x 800",null,51]
[null,null,null,"SE35","800 x 800",null,72]
[null,null,null,"SE45","1050 x 800",null,90]
[null,null,null,"SE55","1300 x 800",null,116]
[]
[null,"ABN","IP54","SE16","300 x 950",225,39]
[null,null,null,"SE26","550 x 950",null,59]
[null,null,null,"SE36","800 x 950",null,79]
[null,null,null,"SE46","1050 x 950",null,106]
[null,null,null,"SE56","1300 x 950",null,139]
[]
[null,"ABN","IP54","SE17","300 x 1100",225,44]
[null,null,null,"SE27","550 x 1100",null,66]
[null,null,null,"SE37","800 x 1100",null,89]
[null,null,null,"SE47","1050 x 1100",null,123]
[null,null,null,"SE57","1300 x 1100",null,162]
[]
[null,"ABN","IP54","SE18","300 x 1250",225,49]
[null,null,null,"SE28","550 x 1250",null,72]
[null,null,null,"SE38","800 x 1250",null,100]
[null,null,null,"SE48","1050 x 1250",null,140]
[null,null,null,"SE58","1300 x 1250",null,183]
[]
[null,"ABN","IP54","SE19","300 x 1400",225,53]
[null,null,null,"SE29","550 x 1400",null,76]
[null,null,null,"SE39","800 x 1400",null,114]
[null,null,null,"SE49","1050 x 1400",null,159]
[null,null,null,"SE59","1300 x 1400",null,204]
["Wandgehäuse Baureihe SP, SK II","ABN","IP54","SP13","300 x 500",225,23,400]
[null,null,null,"SP23","550 x 500",null,37]
[null,null,null,"SP33","800 x 500",null,52]
[null,null,null,"SP43","1050 x 500",null,67]
[null,null,null,"SP53","1300 x 500",null,76]
[]
[null,"ABN","IP54","SP14","300 x 650",225,28]
[null,null,null,"SP24","550 x 650",null,44]
[null,null,null,"SP34","800 x 650",null,61]
[null,null,null,"SP44","1050 x 650",null,75]
[null,null,null,"SP54","1300 x 650",null,97]
[]
[null,"ABN","IP54","SP15","300 x 800",225,34]
[null,null,null,"SP25","550 x 800",null,51]
[null,null,null,"SP35","800 x 800",null,72]
[null,null,null,"SP45","1050 x 800",null,90]
[null,null,null,"SP55","1300 x 800",null,116]
[]
[null,"ABN","IP54","SP16","300 x 950",225,39]
[null,null,null,"SP26","550 x 950",null,59]
[null,null,null,"SP36","800 x 950",null,79]
[null,null,null,"SP46","1050 x 950",null,106]
[null,null,null,"SP56","1300 x 950",null,139]
[]
[null,"ABN","IP54","SP17","300 x 1100",225,44]
[null,null,null,"SP27","550 x 1100",null,66]
[null,null,null,"SP37","800 x 1100",null,89]
[null,null,null,"SP47","1050 x 1100",null,123]
[null,null,null,"SP57","1300 x 1100",null,162]
[]
[null,"ABN","IP54","SP18","300 x 1250",225,49]
[null,null,null,"SP28","550 x 1250",null,72]
[null,null,null,"SP38","800 x 1250",null,100]
[null,null,null,"SP48","1050 x 1250",null,140]
[null,null,null,"SP58","1300 x 1250",null,183]
[]
[null,"ABN","IP54","SP19","300 x 1400",225,53]
[null,null,null,"SP29","550 x 1400",null,76]
[null,null,null,"SP39","800 x 1400",null,114]
[null,null,null,"SP49","1050 x 1400",null,159]
[null,null,null,"SP59","1300 x 1400",null,204]
["Wandgehäuse Baureihe NF..E, SK I","ABN","IP55","NF14E","340 x 690",280,39,630]
[null,null,null,"NF24E","590 x 690",null,61]
[null,null,null,"NF34E","840 x 690",null,68]
[null,null,null,"NF44E","1090 x 690",null,90]
[null,null,null,"NF54E","1340 x 690",null,120]
[]
[null,"ABN","IP55","NF26E","590 x 990",280,60]
[null,null,null,"NF36E","840 x 990",null,90]
[null,null,null,"NF46E","1090 x 990",null,130]
[]
[null,"ABN","IP55","NF27E","590 x 1140",280,66]
[null,null,null,"NF37E","840 x 1140",null,104]
[null,null,null,"NF47E","1090 x 1140",null,147]
[null,null,null,"NF57E","1340 x 1140",null,191]
[]
[null,"ABN","IP55","NF28E","590 x 1290",280,75]
[null,null,null,"NF38E","840 x 1290",null,119]
[null,null,null,"NF48E","1090 x 1290",null,165]
[null,null,null,"NF58E","1340 x 1290",null,210]
[]
[null,"ABN","IP55","NF29E","590 x 1440",280,88]
[null,null,null,"NF39E","840 x 1440",null,128]
[null,null,null,"NF49E","1090 x 1440",null,182]
[null,null,null,"NF59E","1340 x 1440",null,225]
["Wandgehäuse Baureihe NF..P, SK II","ABN","IP55","NF14P","340 x 690",280,39,630]
[null,null,null,"NF24P","590 x 690",null,60]
[null,null,null,"NF34P","840 x 690",null,68]
[null,null,null,"NF44P","1090 x 690",null,90]
[null,null,null,"NF54P","1340 x 690",null,120]
[]
[null,"ABN","IP55","NF26P","590 x 990",280,64]
[null,null,null,"NF36P","840 x 990",null,90]
[null,null,null,"NF46P","1090 x 990",null,130]
[]
[null,"ABN","IP55","NF27P","590 x 1140",280,66]
[null,null,null,"NF37P","840 x 1140",null,104]
[null,null,null,"NF47P","1090 x 1140",null,147]
[null,null,null,"NF57P","1340 x 1140",null,191]
[]
[null,"ABN","IP55","NF28P","590 x 1290",280,75]
[null,null,null,"NF38P","840 x 1290",null,119]
[null,null,null,"NF48P","1090 x 1290",null,165]
[null,null,null,"NF58P","1340 x 1290",null,210]
[]
[null,"ABN","IP55","NF29P","590 x 1440",280,88]
[null,null,null,"NF39P","840 x 1440",null,128]
[null,null,null,"NF49P","1090 x 1440",null,182]
[null,null,null,"NF59P","1340 x 1440",null,225]
["Wandgehäuse Baureihe NT..E, SK I","ABN","IP55","NT14E","340 x 690",340,42,630]
[null,null,null,"NT24E","590 x 690",null,63]
[null,null,null,"NT34E","840 x 690",null,73]
[null,null,null,"NT44E","1090 x 690",null,97]
[null,null,null,"NT54E","1340 x 690",null,129]
[]
[null,"ABN","IP55","NT15E","340 x 840",340,46]
[null,null,null,"NT25E","590 x 840",null,66]
[null,null,null,"NT35E","840 x 840",null,84]
[null,null,null,"NT45E","1090 x 840",null,120]
[null,null,null,"NT55E","1340 x 840",null,148]
[]
[null,"ABN","IP55","NT16E","340 x 990",340,50]
[null,null,null,"NT26E","590 x 990",null,68]
[null,null,null,"NT36E","840 x 990",null,97]
[null,null,null,"NT46E","1090 x 990",null,140]
[null,null,null,"NT56E","1340 x 990",null,171]
[]
[null,"ABN","IP55","NT17E","340 x 1140",340,53]
[null,null,null,"NT27E","590 x 1140",null,76]
[null,null,null,"NT37E","840 x 1140",null,110]
[null,null,null,"NT47E","1090 x 1140",null,155]
[null,null,null,"NT57E","1340 x 1140",null,200]
[]
[null,"ABN","IP55","NT18E","340 x 1290",340,57]
[null,null,null,"NT28E","590 x 1290",null,81]
[null,null,null,"NT38E","840 x 1290",null,127]
[null,null,null,"NT48E","1090 x 1290",null,173]
[null,null,null,"NT58E","1340 x 1290",null,220]
[]
[null,"ABN","IP55","NT19E","340 x 1440",340,61]
[null,null,null,"NT29E","590 x 1440",null,92]
[null,null,null,"NT39E","840 x 1440",null,135]
[null,null,null,"NT49E","1090 x 1440",null,192]
[null,null,null,"NT59E","1340 x 1440",null,235]
["Wandgehäuse Baureihe NP..E, SK II","ABN","IP55","NT14P","340 x 690",340,42,630]
[null,null,null,"NT24P","590 x 690",null,63]
[null,null,null,"NT34P","840 x 690",null,73]
[null,null,null,"NT44P","1090 x 690",null,97]
[null,null,null,"NT54P","1340 x 690",null,129]
[]
[null,"ABN","IP55","NT15P","340 x 840",340,46]
[null,null,null,"NT25P","590 x 840",null,66]
[null,null,null,"NT35P","840 x 840",null,84]
[null,null,null,"NT45P","1090 x 840",null,120]
[null,null,null,"NT55P","1340 x 840",null,148]
[]
[null,"ABN","IP55","NT16P","340 x 990",340,50]
[null,null,null,"NT26P","590 x 990",null,68]
[null,null,null,"NT36P","840 x 990",null,97]
[null,null,null,"NT46P","1090 x 990",null,140]
[null,null,null,"NT56P","1340 x 990",null,171]
[]
[null,"ABN","IP55","NT17P","340 x 1140",340,53]
[null,null,null,"NT27P","590 x 1140",null,76]
[null,null,null,"NT37P","840 x 1140",null,110]
[null,null,null,"NT47P","1090 x 1140",null,155]
[null,null,null,"NT57P","1340 x 1140",null,200]
[]
[null,"ABN","IP55","NT18P","340 x 1290",340,57]
[null,null,null,"NT28P","590 x 1290",null,81]
[null,null,null,"NT38P","840 x 1290",null,127]
[null,null,null,"NT48P","1090 x 1290",null,173]
[null,null,null,"NT58P","1340 x 1290",null,220]
[]
[null,"ABN","IP55","NT19P","340 x 1440",340,61]
[null,null,null,"NT29P","590 x 1440",null,92]
[null,null,null,"NT39P","840 x 1440",null,135]
[null,null,null,"NT49P","1090 x 1440",null,192]
[null,null,null,"NT59P","1340 x 1440",null,235]
["Standgehäuse"]
["Standgehäuse Baureihe ABNRV… , SK I","ABN","IP44","ABNRV112","300 x 1980",210,65,630]
[null,null,null,"ABNRV212","550 x 1980",null,112]
[null,null,null,"ABNRV312","800 x 1980",null,163]
[null,null,null,"ABNRV412","1050 x 1980",null,214]
[null,null,null,"ABNRV512","1300 x 1980",null,263]
["Standgehäuse Baureihe ABNRS… , SK II","ABN","IP44","ABNRS112","300 x 1980",210,65,630]
[null,null,null,"ABNRS212","550 x 1980",null,112]
[null,null,null,"ABNRS312","800 x 1980",null,163]
[null,null,null,"ABNRS412","1050 x 1980",null,214]
[null,null,null,"ABNRS512","1300 x 1980",null,263]
["Standgehäuse Baureihe SE… , SK I","ABN","IP54","SE112","300 x 1980",225,65,630]
[null,null,null,"SE212","550 x 1980",null,112]
[null,null,null,"SE312","800 x 1980",null,163]
[null,null,null,"SE412","1050 x 1980",null,214]
[null,null,null,"SE512","1300 x 1980",null,263]
["Standgehäuse Baureihe SP… , SK II","ABN","IP54","SP112","300 x 1980",225,65,630]
[null,null,null,"SP212","550 x 1980",null,112]
[null,null,null,"SP312","800 x 1980",null,163]
[null,null,null,"SP412","1050 x 1980",null,214]
[null,null,null,"SP512","1300 x 1980",null,263]
["Standgehäuse Baureihe NF…E, SK I","ABN","IP55","NF112E","340 x 1890",280,70,800]
[null,null,null,"NF212E","590 x 1890",null,120]
[null,null,null,"NF312E","840 x 1890",null,171]
[null,null,null,"NF412E","1090 x 1890",null,210]
[null,null,null,"NF512E","1340 x 1890",null,252]
["Standgehäuse Baureihe NF…P, SK II","ABN","IP55","NF112P","340 x 1890",280,70,800]
[null,null,null,"NF212P","590 x 1890",null,120]
[null,null,null,"NF312P","840 x 1890",null,171]
[null,null,null,"NF412P","1090 x 1890",null,210]
[null,null,null,"NF512P","1340 x 1890",null,252]
["Standgehäuse Baureihe NT…E, SK I, \nseitlich geschlossen","ABN","IP55","NT112E","340 x 1890",340,80,1200]
[null,null,null,"NT212E","590 x 1890",null,130]
[null,null,null,"NT312E","840 x 1890",null,180]
[null,null,null,"NT412E","1090 x 1890",null,228]
[null,null,null,"NT512E","1340 x 1890",null,270]
["Standgehäuse Baureihe NT…P, SK II, \nseitlich geschlossen","ABN","IP55","NT112P","340 x 1890",340,80,1200]
[null,null,null,"NT212P","590 x 1890",null,130]
[null,null,null,"NT312P","840 x 1890",null,180]
[null,null,null,"NT412E","1090 x 1890",null,228]
[null,null,null,"NT512P","1340 x 1890",null,270]
["Standgehäuse Baureihe NT…EB, SK I, \nseitlich offen","ABN","IP55","NT112EB","340 x 1890",340,80,1200]
[null,null,null,"NT212EB","590 x 1890",null,130]
[null,null,null,"NT312EB","840 x 1890",null,180]
[null,null,null,"NT412EB","1090 x 1890",null,228]
[null,null,null,"NT512EB","1340 x 1890",null,270]
["Standgehäuse Baureihe NT…PB, SK II, \nseitlich offen","ABN","IP55","NT112PB","340 x 1890",340,80,1200]
[null,null,null,"NT212PB","590 x 1890",null,130]
[null,null,null,"NT312PB","840 x 1890",null,180]
[null,null,null,"NT412PB","1090 x 1890",null,228]
[null,null,null,"NT512PB","1340 x 1890",null,270]
["Standgehäuse Baureihe NS…EB, SK I, \nseitlich offen","ABN","IP55","NS212EB","590 x 1890",500,280,1600]
[null,null,null,"NS312EB","840 x 1890",null,340]
[null,null,null,"NS412EB","1090 x 1890",null,390]
[null,null,null,"NS512EB","1340 x 1890",null,430]
["Standgehäuse Baureihe NS…PB, SK II, \nseitlich offen","ABN","IP55","NS212PB","590 x 1890",500,280,1600]
[null,null,null,"NS312PB","840 x 1890",null,340]
[null,null,null,"NS412PB","1090 x 1890",null,390]
[null,null,null,"NS512PB","1340 x 1890",null,430]

{"sheet":"Pab_Outdoor-Gehäuse","index":2,"n_rows":49,"n_cols":8,"rows_kept":49,"cut":false,"hidden":false,"merged":[[4,0,4,7],[5,6,7,6],[9,6,11,6],[13,0,15,0],[13,1,15,1],[13,2,15,2],[9,0,11,0],[9,1,11,1],[9,2,11,2],[5,0,7,0],[5,1,7,1],[5,2,7,2],[13,6,15,6],[17,0,17,7],[18,0,20,0],[18,1,20,1],[18,2,20,2],[18,6,20,6],[22,0,24,0],[22,1,24,1],[22,2,24,2],[22,6,24,6],[26,0,28,0],[26,1,28,1],[26,2,28,2],[26,6,28,6],[30,0,32,0],[30,1,32,1],[30,2,32,2],[30,6,32,6],[34,0,36,0],[34,1,36,1],[34,2,36,2],[34,6,36,6],[46,0,48,0],[46,1,48,1],[46,2,48,2],[46,6,48,6],[38,0,40,0],[38,1,40,1],[38,2,40,2],[38,6,40,6],[42,0,44,0],[42,1,44,1],[42,2,44,2],[42,6,44,6]]}
["Tabelle Gehäuse-System: Angaben zur Wärmeberechnung gemäß DIN EN 61439-1, -2, -3"]
[]
["Schrankart","Hersteller","Schutzart","Typ","Ausführung","H x B\n[mm]","Tiefe\n[mm]","abstrahlbare\nVerlustleistung \nPab / Pzul.\nin Watt\n\n(bei dT = 20K)\nWandaufbau"]
[]
["Verteilersäule"]
["Verteilersäule Baureihe SL175\nBauhöhe 5","ABN","IP44","SL175","Leergehäuse","1710 x 583",277,110]
[null,null,null,"SL175P","Leergehäuse mit Montageplatte","1710 x 583",null,110]
[null,null,null,"SL175VT","Systemgehäuse mit Ausbausystem Prisma XS","1710 x 583",null,60]
[]
["Verteilersäule Baureihe SL20. \nBauhöhe 7","ABN","IP44","SL205","Leergehäuse","2010 x 583",277,140]
[null,null,null,"SL205P","Leergehäuse mit Montageplatte","2010 x 583",null,140]
[null,null,null,"SL205VT","Systemgehäuse mit Ausbausystem Prisma XS","2010 x 583",null,75]
[]
["Verteilersäule Baureihe SL20. \nBauhöhe 7","ABN","IP44","SL207","Leergehäuse","2010 x 838",277,170]
[null,null,null,"SL207P","Leergehäuse mit Montageplatte","2010 x 838",null,170]
[null,null,null,"SL207VT","Systemgehäuse mit Ausbausystem Prisma XS","2010 x 838",null,90]
[]
["Anschlussschränke"]
["Anschlussschrank Baureihe SL100 \nBauhöhe 6","ABN","IP44","SL100","Leergehäuse","1005 x 585",315,120]
[null,null,null,"SL100P","Leergehäuse mit Montageplatte","1005 x 585",null,120]
[null,null,null,"SL100VT","Systemgehäuse mit Ausbausystem Prisma XS","1005 x 585",null,65]
[]
["Anschlussschrank Baureihe SL101\nBauhöhe 6","ABN","IP44","SL101","Leergehäuse","1005 x 780",315,130]
[null,null,null,"SL101P","Leergehäuse mit Montageplatte","1005 x 780",null,130]
[null,null,null,"SL101VT","Systemgehäuse mit Ausbausystem Prisma XS","1005 x 780",null,70]
[]
["Anschlussschrank Baureihe SL102\nBauhöhe 6","ABN","IP44","SL102","Leergehäuse","1005 x 1110",315,225]
[null,null,null,"SL102P","Leergehäuse mit Montageplatte","1005 x 1110",null,225]
[null,null,null,"SL102VT","Systemgehäuse mit Ausbausystem Prisma XS","1005 x 1110",null,120]
[]
["Anschlussschrank Baureihe SL103 \nBauhöhe 6","ABN","IP44","SL103","Leergehäuse","1080 x 1445",315,290]
[null,null,null,"SL103P","Leergehäuse mit Montageplatte","1080 x 1445",null,290]
[null,null,null,"SL103VT","Systemgehäuse mit Ausbausystem Prisma XS","1080 x 1445",null,155]
[]
["Anschlussschrank Baureihe SL130\nBauhöhe 8","ABN","IP44","SL130","Leergehäuse","1335 x 585",315,160]
[null,null,null,"SL130P","Leergehäuse mit Montageplatte","1335 x 585",null,160]
[null,null,null,"SL130VT","Systemgehäuse mit Ausbausystem Prisma XS","1335 x 585",null,85]
[]
["Anschlussschrank Baureihe SL131 \nBauhöhe 8","ABN","IP44","SL131","Leergehäuse","1335 x 780",315,190]
[null,null,null,"SL131P","Leergehäuse mit Montageplatte","1335 x 780",null,190]
[null,null,null,"SL131VT","Systemgehäuse mit Ausbausystem Prisma XS","1335 x 780",null,100]
[]
["Anschlussschrank Baureihe SL132 \nBauhöhe 8","ABN","IP44","SL132","Leergehäuse","1335 x 1110",315,240]
[null,null,null,"SL132P","Leergehäuse mit Montageplatte","1335 x 1110",null,240]
[null,null,null,"SL132VT","Systemgehäuse mit Ausbausystem Prisma XS","1335 x 1110",null,130]
[]
["Anschlussschrank Baureihe ???? \nBauhöhe 8","ABN","IP44","ABNFG133L00","Leergehäuse","1350 x 1445",315,330]
[null,null,null,"ABNFG133M10","Leergehäuse mit Montageplatte","1350 x 1445",null,330]
[null,null,null,"ABNFG133L06","Systemgehäuse mit Ausbausystem Prisma XS","1350 x 1445",null,180]

{"sheet":"Pv_Einbaugeräte","index":3,"n_rows":621,"n_cols":8,"rows_kept":621,"cut":false,"hidden":false,"merged":[]}
["Tabelle Einbaugeräte:"]
[]
["Geräteart","Hersteller","Typ / \nBestellnummer","Bemerkung","Bemessungsstrom des Gerätes\nIn / A","Verlustleistung des Gerätes pro Pol bei Bemessungsstrom\nin Watt","maximale Verlustleistung der Sicherung bei Bemessungsstrom","Verlustleistung pro Pol bei Bemessungsstrom\nPV / W\n\nSumme Spalte F + G"]
["NH-Sicherung NH 00C","ABN",null,null,125,9,null,9]
["NH-Sicherung NH 00","ABN",null,null,160,12,null,12]
["NH-Sicherung NH 1","ABN",null,null,250,23,null,23]
["NH-Sicherung NH 2","ABN",null,null,400,34,null,34]
["NH-Sicherung NH 3","ABN",null,null,630,48,null,48]
["Schraubsicherungssystem D 01/E14, einschl. Sicherung","ABN",null,null,16,2.2000000000000002,null,5]
["Schraubsicherungssystem D 02/E18, einschl. Sicherung","ABN",null,null,63,5,null,5]
["Schraubsicherungssystem D II/E27, einschl. Sicherung","ABN",null,null,25,4,null,4]
["Schraubsicherungssystem D III/E33, einschl. Sicherung","ABN",null,null,63,7,null,7]
["Sicherungslasttrennschalter NH 00C, einschl. Sicherung","ABN",null,null,125,3.5,6,{"$f":"F13+G13","v":9.5}]
["Sicherungslasttrennschalter NH 00, einschl. Sicherung","ABN",null,null,160,5,12,17]
["Sicherungslasttrennschalter NH 1, einschl. Sicherung","ABN",null,null,250,8.6,18,26.6]
["Sicherungslasttrennschalter NH 2, einschl. Sicherung","ABN",null,null,400,15,28,43]
["Sicherungslasttrennschalter NH 3, einschl. Sicherung","ABN",null,null,630,20,40,60]
["Sicherungsunterteil NH 00, einschl. Sicherung","ABN",null,null,160,4.5999999999999996,12,16.600000000000001]
["Sicherungsunterteil NH 1, einschl. Sicherung","ABN",null,null,250,7.3,23,30.3]
["Sicherungsunterteil NH 2, einschl. Sicherung","ABN",null,null,400,18.600000000000001,34,52.6]
["Lasttrennschalter (63 A)","ABN",null,null,63,2,null,2]
["Lasttrennschalter (100 A)","ABN",null,null,100,3,null,3]
["Lasttrennschalter (125 A)","ABN",null,null,125,1.8,null,1.8]
["Lasttrennschalter (160 A)","ABN",null,null,160,3,null,3]
["Lasttrennschalter (250 A)","ABN",null,null,250,5.8,null,5.8]
["Lasttrennschalter (400 A)","ABN",null,null,400,10.8,null,10.8]
["Lasttrennschalter (630 A)","ABN",null,null,630,30.9,null,30.9]
["Lasttrennumschalter (160 A)","ABN",null,null,160,3,null,3]
["Lasttrennumschalter (250 A)","ABN",null,null,250,5.8,null,5.8]
["Leistungsschalter (160 A)","ABN",null,null,160,13.95,null,13.95]
["Leistungsschalter (250 A)","ABN",null,null,250,18.75,null,18.75]
["Leistungsschalter (400 A)","ABN",null,null,400,19.2,null,19.2]
["Leistungsschalter (630 A)","ABN",null,null,630,39.69,null,39.69]
[]
["Ausschalter 3-polig 63A ","ABN",null,null,63,7.5]
["Stromstoßschalter 16A 1S/1Ö","ABN",null,null,16,1.1000000000000001]
["Treppenlichtautomat 230V 16A","ABN",null,null,16,1]
["Installationsschütz 16A 1-polig","ABN",null,null,16,1.8]
["Installationsschütz 63A 3-polig","ABN",null,null,63,18]
["Schaltuhr digital 4K 16A","ABN",null,null,16,6.6]
["Zeitrelais","ABN",null,null,16,2.5]
["Überspannungsableiter 5-polig","ABN",null,null,250,0]
["Klingeltrafo 230V 2,5A","ABN",null,null,2.5,9]
[]
["SH-Schalter 35A","ABN",null,null,35,5.5]
["SH-Schalter 50A","ABN",null,null,50,6]
["SH-Schalter 63A","ABN",null,null,63,7]
[]
["Sammelschiene je 1m","ABN","12x5","Delta T20",250,20.05]
["Sammelschiene je 1m","ABN","12x5","Delta T25",250,20.41]
["Sammelschiene je 1m","ABN","12x5","Delta T30",250,20.77]
[]
["Sammelschiene je 1m","ABN","2x12x5","Delta T20",250,13.13]
["Sammelschiene je 1m","ABN","2x12x5","Delta T25",250,13.61]
["Sammelschiene je 1m","ABN","2x12x5","Delta T30",250,13.85]
[]
["Sammelschiene je 1m","ABN","30x10","Delta T20",400,10.27]
["Sammelschiene je 1m","ABN","30x10","Delta T25",400,10.46]
["Sammelschiene je 1m","ABN","30x10","Delta T30",400,10.63]
[]
["Sammelschiene je 1m","ABN","40x10","Delta T20",250,19.100000000000001]
["Sammelschiene je 1m","ABN","40x10","Delta T25",400,19.43]
["Sammelschiene je 1m","ABN","40x10","Delta T30",630,19.8]
[]
["FI/LS 1P+N","Schneider","Acti9","10kA"]
["FI/LS iDPN H Vigi, 1P+N, 6A, B-Char., 30mA, Typ A","Schneider","A9D07606","10kA",6,2.7]
["FI/LS iDPN H Vigi, 1P+N, 10A, B-Char., 30mA, Typ A","Schneider","A9D07610","10kA",10,2.7]
["FI/LS iDPN H Vigi, 1P+N, 16A, B-Char., 30mA, Typ A","Schneider","A9D07616","10kA",16,3.2]
["FI/LS iDPN H Vigi, 1P+N, 20A, B-Char., 30mA, Typ A","Schneider","A9D07620","10kA",20,4.7]
["FI/LS iDPN H Vigi, 1P+N, 25A, B-Char., 30mA, Typ A","Schneider","A9D07625","10kA",25,4.7]
["FI/LS iDPN H Vigi, 1P+N, 32A, B-Char., 30mA, Typ A","Schneider","A9D07632","10kA",32,4.5999999999999996]
[]
["FI/LS iDPN H Vigi, 1P+N, 10A, B-Char., 10mA, Typ A","Schneider","A9D08610","10kA",10,2.7]
["FI/LS iDPN H Vigi, 1P+N, 16A, B-Char., 10mA, Typ A","Schneider","A9D08616","10kA",16,3.2]
[]
["FI/LS 1P+N","Schneider","Acti9","10kA"]
["FI/LS iDPN H Vigi, 1P+N, 6A, C-Char., 30mA, Typ A","Schneider","A9D32606","10kA",6,2.7]
["FI/LS iDPN H Vigi, 1P+N, 10A, C-Char., 30mA, Typ A","Schneider","A9D32610","10kA",10,2.7]
["FI/LS iDPN H Vigi, 1P+N, 13A, C-Char., 30mA, Typ A","Schneider","A9D32613","10kA",13,3.3]
["FI/LS iDPN H Vigi, 1P+N, 16A, C-Char., 30mA, Typ A","Schneider","A9D32616","10kA",16,3.2]
["FI/LS iDPN H Vigi, 1P+N, 20A, C-Char., 30mA, Typ A","Schneider","A9D32620","10kA",20,4.7]
["FI/LS iDPN H Vigi, 1P+N, 25A, C-Char., 30mA, Typ A","Schneider","A9D32625","10kA",25,4.7]
["FI/LS iDPN H Vigi, 1P+N, 32A, C-Char., 30mA, Typ A","Schneider","A9D32632","10kA",32,4.5999999999999996]
["FI/LS iDPN H Vigi, 1P+N, 40A, C-Char., 30mA, Typ A","Schneider","A9D32640","10kA",40,5.8]
[]
["FI/LS 1P+N","Schneider","Acti9","6kA"]
["FI/LS iDPN N Vigi, 1P+N, 6A, B-Char., 30mA, Typ A","Schneider","A9D56606","6kA",6,2.7]
["FI/LS iDPN N Vigi, 1P+N, 10A, B-Char., 30mA, Typ A","Schneider","A9D56610","6kA",10,2.7]
["FI/LS iDPN N Vigi, 1P+N, 13A, B-Char., 30mA, Typ A","Schneider","A9D56613","6kA",13,3.3]
["FI/LS iDPN N Vigi, 1P+N, 16A, B-Char., 30mA, Typ A","Schneider","A9D56616","6kA",16,3.2]
["FI/LS iDPN N Vigi, 1P+N, 20A, B-Char., 30mA, Typ A","Schneider","A9D56620","6kA",20,4.7]
["FI/LS iDPN N Vigi, 1P+N, 25A, B-Char., 30mA, Typ A","Schneider","A9D56625","6kA",25,4.7]
["FI/LS iDPN N Vigi, 1P+N, 32A, B-Char., 30mA, Typ A","Schneider","A9D56632","6kA",32,4.5999999999999996]
["FI/LS iDPN N Vigi, 1P+N, 40A, B-Char., 30mA, Typ A","Schneider","A9D56640","6kA",40,5.8]
[]
["FI/LS 1P+N","Schneider","Acti9","6kA"]
["FI/LS iDPN N Vigi, 1P+N, 6A, B-Char., 100mA, Typ A","Schneider","A9D60606","6kA",6,2.7]
["FI/LS iDPN N Vigi, 1P+N, 10A, B-Char., 100mA, Typ A","Schneider","A9D60610","6kA",10,2.7]
["FI/LS iDPN N Vigi, 1P+N, 13A, B-Char., 100mA, Typ A","Schneider","A9D60613","6kA",13,3.3]
["FI/LS iDPN N Vigi, 1P+N, 16A, B-Char., 100mA, Typ A","Schneider","A9D60616","6kA",16,3.2]
["FI/LS iDPN N Vigi, 1P+N, 20A, B-Char., 100mA, Typ A","Schneider","A9D60620","6kA",20,4.7]
["FI/LS iDPN N Vigi, 1P+N, 25A, B-Char., 100mA, Typ A","Schneider","A9D60625","6kA",25,4.7]
["FI/LS iDPN N Vigi, 1P+N, 32A, B-Char., 100mA, Typ A","Schneider","A9D60632","6kA",32,4.5999999999999996]
["FI/LS iDPN N Vigi, 1P+N, 40A, B-Char., 100mA, Typ A","Schneider","A9D60640","6kA",40,5.8]
[]
["FI/LS 1P+N","Schneider","Acti9","6kA"]
["FI/LS iDPN N Vigi, 1P+N, 6A, B-Char., 300mA, Typ A","Schneider","A9D69606","6kA",6,2.7]
["FI/LS iDPN N Vigi, 1P+N, 10A, B-Char., 300mA, Typ A","Schneider","A9D69610","6kA",10,2.7]
["FI/LS iDPN N Vigi, 1P+N, 13A, B-Char., 300mA, Typ A","Schneider","A9D69613","6kA",13,3.3]
["FI/LS iDPN N Vigi, 1P+N, 16A, B-Char., 300mA, Typ A","Schneider","A9D69616","6kA",16,3.2]
["FI/LS iDPN N Vigi, 1P+N, 20A, B-Char., 300mA, Typ A","Schneider","A9D69620","6kA",20,4.7]
["FI/LS iDPN N Vigi, 1P+N, 25A, B-Char., 300mA, Typ A","Schneider","A9D69625","6kA",25,4.7]
["FI/LS iDPN N Vigi, 1P+N, 32A, B-Char., 300mA, Typ A","Schneider","A9D69632","6kA",32,4.5999999999999996]
["FI/LS iDPN N Vigi, 1P+N, 40A, B-Char., 300mA, Typ A","Schneider","A9D69640","6kA",40,5.8]
[]
["FI/LS 4P","Schneider","Acti9","6kA"]
["FI/LS iC60N, 4P, 10A, B-Char., 30mA, Typ A","Schneider","A9D87410","6kA",10,2.7]
["FI/LS iC60N, 4P, 13A, B-Char., 30mA, Typ A","Schneider","A9D87413","6kA",13,3.3]
["FI/LS iC60N, 4P, 16A, B-Char., 30mA, Typ A","Schneider","A9D87416","6kA",16,3.2]
["FI/LS iC60N, 4P, 20A, B-Char., 30mA, Typ A","Schneider","A9D87420","6kA",20,4.7]
["FI/LS iC60N, 4P, 25A, B-Char., 30mA, Typ A","Schneider","A9D87425","6kA",25,4.7]
["FI/LS iC60N, 4P, 32A, B-Char., 30mA, Typ A","Schneider","A9D87432","6kA",32,4.5999999999999996]
[]
["FI 2P ,  30mA","Schneider","Acti9"]
["FI-Schutzschalter iID, 2P, 25A , 30mA, Typ A","Schneider","A9Z21225",null,25,0.9]
["FI-Schutzschalter iID, 2P, 40A , 30mA, Typ A","Schneider","A9Z21240",null,40,2.6]
["FI-Schutzschalter iID, 2P, 63A , 30mA, Typ A","Schneider","A9Z21263",null,63,2.6]
["FI-Schutzschalter iID, 2P, 80A , 30mA, Typ A","Schneider","A9Z21280",null,80,3]
["FI-Schutzschalter iID, 2P, 100A , 30mA, Typ A","Schneider","A9Z21291",null,100,5]
["allstromsensitiv"]
["allstromsensitiv","Schneider","A9Z61425",null,25]
["allstromsensitiv","Schneider","A9Z61440",null,40]
["allstromsensitiv","Schneider","A9Z61463",null,63]
["allstromsensitiv","Schneider","A9Z61480",null,80]
[]
["FI 2P ,  100mA","Schneider","Acti9"]
["FI-Schutzschalter iID, 2P, 40A , 100mA, Typ A","Schneider","A9Z22240",null,40,2.6]
["FI-Schutzschalter iID, 2P, 63A , 100mA, Typ A","Schneider","A9Z22263",null,63,2.6]
["FI-Schutzschalter iID, 2P, 80A , 100mA, Typ A","Schneider","A9Z22280",null,80,3]
["FI-Schutzschalter iID, 2P, 100A , 100mA, Typ A","Schneider","A9Z22291",null,100,5]
[]
["FI 2P ,  300mA","Schneider","Acti9"]
["FI-Schutzschalter iID, 2P, 25A , 300mA, Typ A","Schneider","A9Z24225",null,25,0.9]
["FI-Schutzschalter iID, 2P, 40A , 300mA, Typ A","Schneider","A9Z24240",null,40,2.6]
["FI-Schutzschalter iID, 2P, 63A , 300mA, Typ A","Schneider","A9Z24263",null,63,2.6]
["FI-Schutzschalter iID, 2P, 80A , 300mA, Typ A","Schneider","A9Z24280",null,80,3]
["FI-Schutzschalter iID, 2P, 100A , 300mA, Typ A","Schneider","A9Z24291",null,100,5]
["allstromsensitiv"]
["allstromsensitiv","Schneider","A9Z64425",null,25]
["allstromsensitiv","Schneider","A9Z64440",null,40]
["allstromsensitiv","Schneider","A9Z64463",null,63]
["allstromsensitiv","Schneider","A9Z64480",null,80]
[]
["FI 4P ,  30mA","Schneider","Acti9"]
["FI-Schutzschalter iID, 4P, 25A , 30mA, Typ A","Schneider","A9Z21425",null,25,0.7]
["FI-Schutzschalter iID, 4P, 40A , 30mA, Typ A","Schneider","A9Z21440",null,40,1.9]
["FI-Schutzschalter iID, 4P, 63A , 30mA, Typ A","Schneider","A9Z21463",null,63,1.5]
["FI-Schutzschalter iID, 4P, 80A , 30mA, Typ A","Schneider","A9Z21480",null,80,2.6]
["FI-Schutzschalter iID, 4P, 100A , 30mA, Typ A","Schneider","A9Z21491",null,100,4.3]
[]
["FI 4P ,  100mA","Schneider","Acti9"]
["FI-Schutzschalter iID, 4P, 40A , 100mA, Typ A","Schneider","A9Z22440",null,40,1.9]
["FI-Schutzschalter iID, 4P, 63A , 100mA, Typ A","Schneider","A9Z22463",null,63,1.5]
["FI-Schutzschalter iID, 4P, 80A , 100mA, Typ A","Schneider","A9Z22480",null,80,2.6]
["FI-Schutzschalter iID, 4P, 100A , 100mA, Typ A","Schneider","A9Z22491",null,100,4.3]
[]
["FI 4P ,  300mA","Schneider","Acti9"]
["FI-Schutzschalter iID, 4P, 25A , 300mA, Typ A","Schneider","A9Z24425",null,25,0.7]
["FI-Schutzschalter iID, 4P, 40A , 300mA, Typ A","Schneider","A9Z24440",null,40,1.9]
["FI-Schutzschalter iID, 4P, 63A , 300mA, Typ A","Schneider","A9Z24463",null,63,1.5]
["FI-Schutzschalter iID, 4P, 80A , 300mA, Typ A","Schneider","A9Z24480",null,80,2.6]
["FI-Schutzschalter iID, 4P, 100A , 300mA, Typ A","Schneider","A9Z24491",null,100,4.3]
[]
["FI 4P ,  500mA","Schneider","Acti9"]
["FI-Schutzschalter iID, 4P, 25A , 500mA, Typ A","Schneider","A9Z26425",null,25,0.7]
["FI-Schutzschalter iID, 4P, 40A , 500mA, Typ A","Schneider","A9Z26440",null,40,1.9]
["FI-Schutzschalter iID, 4P, 63A , 500mA, Typ A","Schneider","A9Z26463",null,63,1.5]
["FI-Schutzschalter iID, 4P, 80A , 500mA, Typ A","Schneider","A9Z26480",null,80,2.6]
["FI-Schutzschalter iID, 4P, 100A , 500mA, Typ A","Schneider","A9Z26491",null,100,4.3]
[]
["LS-Schalter  1P","Schneider","Acti9","10kA"]
["LS-Schalter iC60H, 1P, 6A, B Charakteristik","Schneider","A9F06106","10kA",6,1.3]
["LS-Schalter iC60H, 1P, 10A, B Charakteristik","Schneider","A9F06110","10kA",10,2]
["LS-Schalter iC60H, 1P, 13A, B Charakteristik","Schneider","A9F06113","10kA",13,2]
["LS-Schalter iC60H, 1P, 16A, B Charakteristik","Schneider","A9F06116","10kA",16,2.1]
["LS-Schalter iC60H, 1P, 20A, B Charakteristik","Schneider","A9F06120","10kA",20,2.2000000000000002]
["LS-Schalter iC60H, 1P, 25A, B Charakteristik","Schneider","A9F06125","10kA",25,2.7]
["LS-Schalter iC60H, 1P, 32A, B Charakteristik","Schneider","A9F06132","10kA",32,2.8]
["LS-Schalter iC60H, 1P, 40A, B Charakteristik","Schneider","A9F06140","10kA",40,2]
["LS-Schalter iC60H, 1P, 50A, B Charakteristik","Schneider","A9F06150","10kA",50,4]
["LS-Schalter iC60H, 1P, 63A, B Charakteristik","Schneider","A9F06163","10kA",63,5.6]
[]
["LS-Schalter  1P+N","Schneider","Acti9","10kA"]
["LS-Schalter iC60H, 1P+N, 6A, B Charakteristik","Schneider","A9F06606","10kA",6,1.3]
["LS-Schalter iC60H, 1P+N, 10A, B Charakteristik","Schneider","A9F06610","10kA",10,2]
["LS-Schalter iC60H, 1P+N, 13A, B Charakteristik","Schneider","A9F06613","10kA",13,2]
["LS-Schalter iC60H, 1P+N, 16A, B Charakteristik","Schneider","A9F06616","10kA",16,2.1]
["LS-Schalter iC60H, 1P+N, 20A, B Charakteristik","Schneider","A9F06620","10kA",20,2.2000000000000002]
["LS-Schalter iC60H, 1P+N, 25A, B Charakteristik","Schneider","A9F06625","10kA",25,2.7]
["LS-Schalter iC60H, 1P+N, 32A, B Charakteristik","Schneider","A9F06632","10kA",32,2.8]
["LS-Schalter iC60H, 1P+N, 40A, B Charakteristik","Schneider","A9F06640","10kA",40,2]
["LS-Schalter iC60H, 1P+N, 50A, B Charakteristik","Schneider","A9F06650","10kA",50,4]
["LS-Schalter iC60H, 1P+N, 63A, B Charakteristik","Schneider","A9F06663","10kA",63,5.6]
[]
["LS-Schalter  2P","Schneider","Acti9","10kA"]
["LS-Schalter iC60H, 2P, 6A, B Charakteristik","Schneider","A9F06206","10kA",6,1.3]
["LS-Schalter iC60H, 2P, 10A, B Charakteristik","Schneider","A9F06210","10kA",10,2]
["LS-Schalter iC60H, 2P, 13A, B Charakteristik","Schneider","A9F06213","10kA",13,2]
["LS-Schalter iC60H, 2P, 16A, B Charakteristik","Schneider","A9F06216","10kA",16,2.1]
["LS-Schalter iC60H, 2P, 20A, B Charakteristik","Schneider","A9F06220","10kA",20,2.2000000000000002]
["LS-Schalter iC60H, 2P, 25A, B Charakteristik","Schneider","A9F06225","10kA",25,2.7]
["LS-Schalter iC60H, 2P, 32A, B Charakteristik","Schneider","A9F06232","10kA",32,2.8]
["LS-Schalter iC60H, 2P, 40A, B Charakteristik","Schneider","A9F06240","10kA",40,2]
["LS-Schalter iC60H, 2P, 50A, B Charakteristik","Schneider","A9F06250","10kA",50,4]
["LS-Schalter iC60H, 2P, 63A, B Charakteristik","Schneider","A9F06263","10kA",63,5.6]
[]
["LS-Schalter  3P","Schneider","Acti9","10kA"]
["LS-Schalter iC60H, 3P, 6A, B Charakteristik","Schneider","A9F06306","10kA",6,1.3]
["LS-Schalter iC60H, 3P, 10A, B Charakteristik","Schneider","A9F06310","10kA",10,2]
["LS-Schalter iC60H, 3P, 13A, B Charakteristik","Schneider","A9F06313","10kA",13,2]
["LS-Schalter iC60H, 3P, 16A, B Charakteristik","Schneider","A9F06316","10kA",16,2.1]
["LS-Schalter iC60H, 3P, 20A, B Charakteristik","Schneider","A9F06320","10kA",20,2.2000000000000002]
["LS-Schalter iC60H, 3P, 25A, B Charakteristik","Schneider","A9F06325","10kA",25,2.7]
["LS-Schalter iC60H, 3P, 32A, B Charakteristik","Schneider","A9F06332","10kA",32,2.8]
["LS-Schalter iC60H, 3P, 40A, B Charakteristik","Schneider","A9F06340","10kA",40,2]
["LS-Schalter iC60H, 3P, 50A, B Charakteristik","Schneider","A9F06350","10kA",50,4]
["LS-Schalter iC60H, 3P, 63A, B Charakteristik","Schneider","A9F06363","10kA",63,5.6]
[]
["LS-Schalter  4P","Schneider","Acti9","10kA"]
["LS-Schalter iC60H, 4P, 6A, B Charakteristik","Schneider","A9F06406","10kA",6,1.3]
["LS-Schalter iC60H, 4P, 10A, B Charakteristik","Schneider","A9F06410","10kA",10,2]
["LS-Schalter iC60H, 4P, 13A, B Charakteristik","Schneider","A9F06413","10kA",13,2]
["LS-Schalter iC60H, 4P, 16A, B Charakteristik","Schneider","A9F06416","10kA",16,2.1]
["LS-Schalter iC60H, 4P, 20A, B Charakteristik","Schneider","A9F06420","10kA",20,2.2000000000000002]
["LS-Schalter iC60H, 4P, 25A, B Charakteristik","Schneider","A9F06425","10kA",25,2.7]
["LS-Schalter iC60H, 4P, 32A, B Charakteristik","Schneider","A9F06432","10kA",32,2.8]
["LS-Schalter iC60H, 4P, 40A, B Charakteristik","Schneider","A9F06440","10kA",40,2]
["LS-Schalter iC60H, 4P, 50A, B Charakteristik","Schneider","A9F06450","10kA",50,4]
["LS-Schalter iC60H, 4P, 63A, B Charakteristik","Schneider","A9F06463","10kA",63,5.6]
[]
["LS-Schalter  1P","Schneider","Acti9","10kA"]
["LS-Schalter iC60H, 1P, 1A, C Charakteristik","Schneider","A9F07101","10kA",1,2.2999999999999998]
["LS-Schalter iC60H, 1P, 2A, C Charakteristik","Schneider","A9F07102","10kA",2,1.9]
["LS-Schalter iC60H, 1P, 3A, C Charakteristik","Schneider","A9F07103","10kA",3,2.2000000000000002]
["LS-Schalter iC60H, 1P, 4A, C Charakteristik","Schneider","A9F07104","10kA",4,2.4]
["LS-Schalter iC60H, 1P, 6A, C Charakteristik","Schneider","A9F07106","10kA",6,1.3]
["LS-Schalter iC60H, 1P, 10A, C Charakteristik","Schneider","A9F07110","10kA",10,2]
["LS-Schalter iC60H, 1P, 13A, C Charakteristik","Schneider","A9F07113","10kA",13,2]
["LS-Schalter iC60H, 1P, 16A, C Charakteristik","Schneider","A9F07116","10kA",16,2.1]
["LS-Schalter iC60H, 1P, 20A, C Charakteristik","Schneider","A9F07120","10kA",20,2.2000000000000002]
["LS-Schalter iC60H, 1P, 25A, C Charakteristik","Schneider","A9F07125","10kA",25,2.7]
["LS-Schalter iC60H, 1P, 32A, C Charakteristik","Schneider","A9F07132","10kA",32,2.8]
["LS-Schalter iC60H, 1P, 40A, C Charakteristik","Schneider","A9F07140","10kA",40,2]
["LS-Schalter iC60H, 1P, 50A, C Charakteristik","Schneider","A9F07150","10kA",50,4]
["LS-Schalter iC60H, 1P, 63A, C Charakteristik","Schneider","A9F07163","10kA",63,5.6]
[]
["LS-Schalter  1P+N","Schneider","Acti9","10kA"]
["LS-Schalter iC60H, 1P+N, 1A, C Charakteristik","Schneider","A9F07601","10kA",1,2.2999999999999998]
["LS-Schalter iC60H, 1P+N, 2A, C Charakteristik","Schneider","A9F07602","10kA",2,1.9]
["LS-Schalter iC60H, 1P+N, 3A, C Charakteristik","Schneider","A9F07603","10kA",3,2.2000000000000002]
["LS-Schalter iC60H, 1P+N, 4A, C Charakteristik","Schneider","A9F07604","10kA",4,2.4]
["LS-Schalter iC60H, 1P+N, 6A, C Charakteristik","Schneider","A9F07606","10kA",6,1.3]
["LS-Schalter iC60H, 1P+N, 10A, C Charakteristik","Schneider","A9F07610","10kA",10,2]
["LS-Schalter iC60H, 1P+N, 13A, C Charakteristik","Schneider","A9F07613","10kA",13,2]
["LS-Schalter iC60H, 1P+N, 16A, C Charakteristik","Schneider","A9F07616","10kA",16,2.1]
["LS-Schalter iC60H, 1P+N, 20A, C Charakteristik","Schneider","A9F07620","10kA",20,2.2000000000000002]
["LS-Schalter iC60H, 1P+N, 25A, C Charakteristik","Schneider","A9F07625","10kA",25,2.7]
["LS-Schalter iC60H, 1P+N, 32A, C Charakteristik","Schneider","A9F07632","10kA",32,2.8]
["LS-Schalter iC60H, 1P+N, 40A, C Charakteristik","Schneider","A9F07640","10kA",40,2]
["LS-Schalter iC60H, 1P+N, 50A, C Charakteristik","Schneider","A9F07650","10kA",50,4]
["LS-Schalter iC60H, 1P+N, 63A, C Charakteristik","Schneider","A9F07663","10kA",63,5.6]
[]
["LS-Schalter  2P","Schneider","Acti9","10kA"]
["LS-Schalter iC60H, 2P, 1A, C Charakteristik","Schneider","A9F07201","10kA",1,2.2999999999999998]
["LS-Schalter iC60H, 2P, 2A, C Charakteristik","Schneider","A9F07202","10kA",2,1.9]
["LS-Schalter iC60H, 2P, 3A, C Charakteristik","Schneider","A9F07203","10kA",3,2.2000000000000002]
["LS-Schalter iC60H, 2P, 4A, C Charakteristik","Schneider","A9F07204","10kA",4,2.4]
["LS-Schalter iC60H, 2P, 6A, C Charakteristik","Schneider","A9F07206","10kA",6,1.3]
["LS-Schalter iC60H, 2P, 10A, C Charakteristik","Schneider","A9F07210","10kA",10,2]
["LS-Schalter iC60H, 2P, 13A, C Charakteristik","Schneider","A9F07213","10kA",13,2]
["LS-Schalter iC60H, 2P, 16A, C Charakteristik","Schneider","A9F07216","10kA",16,2.1]
["LS-Schalter iC60H, 2P, 20A, C Charakteristik","Schneider","A9F07220","10kA",20,2.2000000000000002]
["LS-Schalter iC60H, 2P, 25A, C Charakteristik","Schneider","A9F07225","10kA",25,2.7]
["LS-Schalter iC60H, 2P, 32A, C Charakteristik","Schneider","A9F07232","10kA",32,2.8]
["LS-Schalter iC60H, 2P, 40A, C Charakteristik","Schneider","A9F07240","10kA",40,2]
["LS-Schalter iC60H, 2P, 50A, C Charakteristik","Schneider","A9F07250","10kA",50,4]
["LS-Schalter iC60H, 2P, 63A, C Charakteristik","Schneider","A9F07263","10kA",63,5.6]
[]
["LS-Schalter  3P","Schneider","Acti9","10kA"]
["LS-Schalter iC60H, 3P, 1A, C Charakteristik","Schneider","A9F07301","10kA",1,2.2999999999999998]
["LS-Schalter iC60H, 3P, 2A, C Charakteristik","Schneider","A9F07302","10kA",2,1.9]
["LS-Schalter iC60H, 3P, 3A, C Charakteristik","Schneider","A9F07303","10kA",3,2.2000000000000002]
["LS-Schalter iC60H, 3P, 4A, C Charakteristik","Schneider","A9F07304","10kA",4,2.4]
["LS-Schalter iC60H, 3P, 6A, C Charakteristik","Schneider","A9F07306","10kA",6,1.3]
["LS-Schalter iC60H, 3P, 10A, C Charakteristik","Schneider","A9F07310","10kA",10,2]
["LS-Schalter iC60H, 3P, 13A, C Charakteristik","Schneider","A9F07313","10kA",13,2]
["LS-Schalter iC60H, 3P, 16A, C Charakteristik","Schneider","A9F07316","10kA",16,2.1]
["LS-Schalter iC60H, 3P, 20A, C Charakteristik","Schneider","A9F07320","10kA",20,2.2000000000000002]
["LS-Schalter iC60H, 3P, 25A, C Charakteristik","Schneider","A9F07325","10kA",25,2.7]
["LS-Schalter iC60H, 3P, 32A, C Charakteristik","Schneider","A9F07332","10kA",32,2.8]
["LS-Schalter iC60H, 3P, 40A, C Charakteristik","Schneider","A9F07340","10kA",40,2]
["LS-Schalter iC60H, 3P, 50A, C Charakteristik","Schneider","A9F07350","10kA",50,4]
["LS-Schalter iC60H, 3P, 63A, C Charakteristik","Schneider","A9F07363","10kA",63,5.6]
[]
["LS-Schalter  4P","Schneider","Acti9","10kA"]
["LS-Schalter iC60H, 4P, 1A, C Charakteristik","Schneider","A9F07401","10kA",1,2.2999999999999998]
["LS-Schalter iC60H, 4P, 2A, C Charakteristik","Schneider","A9F07402","10kA",2,1.9]
["LS-Schalter iC60H, 4P, 3A, C Charakteristik","Schneider","A9F07403","10kA",3,2.2000000000000002]
["LS-Schalter iC60H, 4P, 4A, C Charakteristik","Schneider","A9F07404","10kA",4,2.4]
["LS-Schalter iC60H, 4P, 6A, C Charakteristik","Schneider","A9F07406","10kA",6,1.3]
["LS-Schalter iC60H, 4P, 10A, C Charakteristik","Schneider","A9F07410","10kA",10,2]
["LS-Schalter iC60H, 4P, 13A, C Charakteristik","Schneider","A9F07413","10kA",13,2]
["LS-Schalter iC60H, 4P, 16A, C Charakteristik","Schneider","A9F07416","10kA",16,2.1]
["LS-Schalter iC60H, 4P, 20A, C Charakteristik","Schneider","A9F07420","10kA",20,2.2000000000000002]
["LS-Schalter iC60H, 4P, 25A, C Charakteristik","Schneider","A9F07425","10kA",25,2.7]
["LS-Schalter iC60H, 4P, 32A, C Charakteristik","Schneider","A9F07432","10kA",32,2.8]
["LS-Schalter iC60H, 4P, 40A, C Charakteristik","Schneider","A9F07440","10kA",40,2]
["LS-Schalter iC60H, 4P, 50A, C Charakteristik","Schneider","A9F07450","10kA",50,4]
["LS-Schalter iC60H, 4P, 63A, C Charakteristik","Schneider","A9F07463","10kA",63,5.6]
[]
["LS-Schalter  1P","Schneider","Acti9","10kA"]
["LS-Schalter iC60H, 1P, 1A, D Charakteristik","Schneider","A9F08101","10kA",1,2.2999999999999998]
["LS-Schalter iC60H, 1P, 2A, D Charakteristik","Schneider","A9F08102","10kA",2,1.9]
["LS-Schalter iC60H, 1P, 3A, D Charakteristik","Schneider","A9F08103","10kA",3,2.2000000000000002]
["LS-Schalter iC60H, 1P, 4A, D Charakteristik","Schneider","A9F08104","10kA",4,2.4]
["LS-Schalter iC60H, 1P, 6A, D Charakteristik","Schneider","A9F08106","10kA",6,1.3]
["LS-Schalter iC60H, 1P, 10A, D Charakteristik","Schneider","A9F08110","10kA",10,2]
["LS-Schalter iC60H, 1P, 13A, D Charakteristik","Schneider","A9F08113","10kA",13,2]
["LS-Schalter iC60H, 1P, 16A, D Charakteristik","Schneider","A9F08116","10kA",16,2.1]
["LS-Schalter iC60H, 1P, 20A, D Charakteristik","Schneider","A9F08120","10kA",20,2.2000000000000002]
["LS-Schalter iC60H, 1P, 25A, D Charakteristik","Schneider","A9F08125","10kA",25,2.7]
["LS-Schalter iC60H, 1P, 32A, D Charakteristik","Schneider","A9F08132","10kA",32,2.8]
["LS-Schalter iC60H, 1P, 40A, D Charakteristik","Schneider","A9F08140","10kA",40,2]
["LS-Schalter iC60H, 1P, 50A, D Charakteristik","Schneider","A9F08150","10kA",50,4]
["LS-Schalter iC60H, 1P, 63A, D Charakteristik","Schneider","A9F08163","10kA",63,5.6]
[]
["LS-Schalter  2P","Schneider","Acti9","10kA"]
["LS-Schalter iC60H, 2P, 1A, D Charakteristik","Schneider","A9F08201","10kA",1,2.2999999999999998]
["LS-Schalter iC60H, 2P, 2A, D Charakteristik","Schneider","A9F08202","10kA",2,1.9]
["LS-Schalter iC60H, 2P, 3A, D Charakteristik","Schneider","A9F08203","10kA",3,2.2000000000000002]
["LS-Schalter iC60H, 2P, 4A, D Charakteristik","Schneider","A9F08204","10kA",4,2.4]
["LS-Schalter iC60H, 2P, 6A, D Charakteristik","Schneider","A9F08206","10kA",6,1.3]
["LS-Schalter iC60H, 2P, 10A, D Charakteristik","Schneider","A9F08210","10kA",10,2]
["LS-Schalter iC60H, 2P, 13A, D Charakteristik","Schneider","A9F08213","10kA",13,2]
["LS-Schalter iC60H, 2P, 16A, D Charakteristik","Schneider","A9F08216","10kA",16,2.1]
["LS-Schalter iC60H, 2P, 20A, D Charakteristik","Schneider","A9F08220","10kA",20,2.2000000000000002]
["LS-Schalter iC60H, 2P, 25A, D Charakteristik","Schneider","A9F08225","10kA",25,2.7]
["LS-Schalter iC60H, 2P, 32A, D Charakteristik","Schneider","A9F08232","10kA",32,2.8]
["LS-Schalter iC60H, 2P, 40A, D Charakteristik","Schneider","A9F08240","10kA",40,2]
["LS-Schalter iC60H, 2P, 50A, D Charakteristik","Schneider","A9F08250","10kA",50,4]
["LS-Schalter iC60H, 2P, 63A, D Charakteristik","Schneider","A9F08263","10kA",63,5.6]
[]
["LS-Schalter  3P","Schneider","Acti9","10kA"]
["LS-Schalter iC60H, 3P, 1A, D Charakteristik","Schneider","A9F08301","10kA",1,2.2999999999999998]
["LS-Schalter iC60H, 3P, 2A, D Charakteristik","Schneider","A9F08302","10kA",2,1.9]
["LS-Schalter iC60H, 3P, 3A, D Charakteristik","Schneider","A9F08303","10kA",3,2.2000000000000002]
["LS-Schalter iC60H, 3P, 4A, D Charakteristik","Schneider","A9F08304","10kA",4,2.4]
["LS-Schalter iC60H, 3P, 6A, D Charakteristik","Schneider","A9F08306","10kA",6,1.3]
["LS-Schalter iC60H, 3P, 10A, D Charakteristik","Schneider","A9F08310","10kA",10,2]
["LS-Schalter iC60H, 3P, 13A, D Charakteristik","Schneider","A9F08313","10kA",13,2]
["LS-Schalter iC60H, 3P, 16A, D Charakteristik","Schneider","A9F08316","10kA",16,2.1]
["LS-Schalter iC60H, 3P, 20A, D Charakteristik","Schneider","A9F08320","10kA",20,2.2000000000000002]
["LS-Schalter iC60H, 3P, 25A, D Charakteristik","Schneider","A9F08325","10kA",25,2.7]
["LS-Schalter iC60H, 3P, 32A, D Charakteristik","Schneider","A9F08332","10kA",32,2.8]
["LS-Schalter iC60H, 3P, 40A, D Charakteristik","Schneider","A9F08340","10kA",40,2]
["LS-Schalter iC60H, 3P, 50A, D Charakteristik","Schneider","A9F08350","10kA",50,4]
["LS-Schalter iC60H, 3P, 63A, D Charakteristik","Schneider","A9F08363","10kA",63,5.6]
[]
["LS-Schalter  4P","Schneider","Acti9","10kA"]
["LS-Schalter iC60H, 4P, 1A, D Charakteristik","Schneider","A9F08401","10kA",1,2.2999999999999998]
["LS-Schalter iC60H, 4P, 2A, D Charakteristik","Schneider","A9F08402","10kA",2,1.9]
["LS-Schalter iC60H, 4P, 3A, D Charakteristik","Schneider","A9F08403","10kA",3,2.2000000000000002]
["LS-Schalter iC60H, 4P, 4A, D Charakteristik","Schneider","A9F08404","10kA",4,2.4]
["LS-Schalter iC60H, 4P, 6A, D Charakteristik","Schneider","A9F08406","10kA",6,1.3]
["LS-Schalter iC60H, 4P, 10A, D Charakteristik","Schneider","A9F08410","10kA",10,2]
["LS-Schalter iC60H, 4P, 13A, D Charakteristik","Schneider","A9F08413","10kA",13,2]
["LS-Schalter iC60H, 4P, 16A, D Charakteristik","Schneider","A9F08416","10kA",16,2.1]
["LS-Schalter iC60H, 4P, 20A, D Charakteristik","Schneider","A9F08420","10kA",20,2.2000000000000002]
["LS-Schalter iC60H, 4P, 25A, D Charakteristik","Schneider","A9F08425","10kA",25,2.7]
["LS-Schalter iC60H, 4P, 32A, D Charakteristik","Schneider","A9F08432","10kA",32,2.8]
["LS-Schalter iC60H, 4P, 40A, D Charakteristik","Schneider","A9F08440","10kA",40,2]
["LS-Schalter iC60H, 4P, 50A, D Charakteristik","Schneider","A9F08450","10kA",50,4]
["LS-Schalter iC60H, 4P, 63A, D Charakteristik","Schneider","A9F08463","10kA",63,5.6]
[]
["LS-Schalter  1P","Schneider","Acti9","6kA"]
["LS-Schalter iC60N, 1P, 1A, B Charakteristik","Schneider","A9F03101","6kA",1,2.2999999999999998]
["LS-Schalter iC60N, 1P, 2A, B Charakteristik","Schneider","A9F03102","6kA",2,1.9]
["LS-Schalter iC60N, 1P, 4A, B Charakteristik","Schneider","A9F03104","6kA",4,2.4]
["LS-Schalter iC60N, 1P, 6A, B Charakteristik","Schneider","A9F03106","6kA",6,1.3]
["LS-Schalter iC60N, 1P, 10A, B Charakteristik","Schneider","A9F03110","6kA",10,2]
["LS-Schalter iC60N, 1P, 13A, B Charakteristik","Schneider","A9F03113","6kA",13,2]
["LS-Schalter iC60N, 1P, 16A, B Charakteristik","Schneider","A9F03116","6kA",16,2.1]
["LS-Schalter iC60N, 1P, 20A, B Charakteristik","Schneider","A9F03120","6kA",20,2.2000000000000002]
["LS-Schalter iC60N, 1P, 25A, B Charakteristik","Schneider","A9F03125","6kA",25,2.7]
["LS-Schalter iC60N, 1P, 32A, B Charakteristik","Schneider","A9F03132","6kA",32,2.8]
["LS-Schalter iC60N, 1P, 40A, B Charakteristik","Schneider","A9F03140","6kA",40,2]
["LS-Schalter iC60N, 1P, 50A, B Charakteristik","Schneider","A9F03150","6kA",50,4]
["LS-Schalter iC60N, 1P, 63A, B Charakteristik","Schneider","A9F03163","6kA",63,5.6]
[]
["LS-Schalter  1P+N","Schneider","Acti9","6kA"]
["LS-Schalter iC60N, 1P+N, 6A, B Charakteristik","Schneider","A9F03606","6kA",6,1.3]
["LS-Schalter iC60N, 1P+N, 10A, B Charakteristik","Schneider","A9F03610","6kA",10,2]
["LS-Schalter iC60N, 1P+N, 13A, B Charakteristik","Schneider","A9F03613","6kA",13,2]
["LS-Schalter iC60N, 1P+N, 16A, B Charakteristik","Schneider","A9F03616","6kA",16,2.1]
["LS-Schalter iC60N, 1P+N, 20A, B Charakteristik","Schneider","A9F03620","6kA",20,2.2000000000000002]
["LS-Schalter iC60N, 1P+N, 25A, B Charakteristik","Schneider","A9F03625","6kA",25,2.7]
["LS-Schalter iC60N, 1P+N, 32A, B Charakteristik","Schneider","A9F03632","6kA",32,2.8]
["LS-Schalter iC60N, 1P+N, 40A, B Charakteristik","Schneider","A9F03640","6kA",40,2]
["LS-Schalter iC60N, 1P+N, 50A, B Charakteristik","Schneider","A9F03650","6kA",50,4]
["LS-Schalter iC60N, 1P+N, 63A, B Charakteristik","Schneider","A9F03663","6kA",63,5.6]
[]
["LS-Schalter  2P","Schneider","Acti9","6kA"]
["LS-Schalter iC60N, 2P, 2A, B Charakteristik","Schneider","A9F03202","6kA",2,1.9]
["LS-Schalter iC60N, 2P, 4A, B Charakteristik","Schneider","A9F03204","6kA",4,2.4]
["LS-Schalter iC60N, 2P, 6A, B Charakteristik","Schneider","A9F03206","6kA",6,1.3]
["LS-Schalter iC60N, 2P, 10A, B Charakteristik","Schneider","A9F03210","6kA",10,2]
["LS-Schalter iC60N, 2P, 13A, B Charakteristik","Schneider","A9F03213","6kA",13,2]
["LS-Schalter iC60N, 2P, 16A, B Charakteristik","Schneider","A9F03216","6kA",16,2.1]
["LS-Schalter iC60N, 2P, 20A, B Charakteristik","Schneider","A9F03220","6kA",20,2.2000000000000002]
["LS-Schalter iC60N, 2P, 25A, B Charakteristik","Schneider","A9F03225","6kA",25,2.7]
["LS-Schalter iC60N, 2P, 32A, B Charakteristik","Schneider","A9F03232","6kA",32,2.8]
["LS-Schalter iC60N, 2P, 40A, B Charakteristik","Schneider","A9F03240","6kA",40,2]
["LS-Schalter iC60N, 2P, 50A, B Charakteristik","Schneider","A9F03250","6kA",50,4]
["LS-Schalter iC60N, 2P, 63A, B Charakteristik","Schneider","A9F03263","6kA",63,5.6]
[]
["LS-Schalter  3P","Schneider","Acti9","6kA"]
["LS-Schalter iC60N, 3P, 2A, B Charakteristik","Schneider","A9F03302","6kA",2,1.9]
["LS-Schalter iC60N, 3P, 6A, B Charakteristik","Schneider","A9F03306","6kA",6,1.3]
["LS-Schalter iC60N, 3P, 10A, B Charakteristik","Schneider","A9F03310","6kA",10,2]
["LS-Schalter iC60N, 3P, 13A, B Charakteristik","Schneider","A9F03313","6kA",13,2]
["LS-Schalter iC60N, 3P, 16A, B Charakteristik","Schneider","A9F03316","6kA",16,2.1]
["LS-Schalter iC60N, 3P, 20A, B Charakteristik","Schneider","A9F03320","6kA",20,2.2000000000000002]
["LS-Schalter iC60N, 3P, 25A, B Charakteristik","Schneider","A9F03325","6kA",25,2.7]
["LS-Schalter iC60N, 3P, 32A, B Charakteristik","Schneider","A9F03332","6kA",32,2.8]
["LS-Schalter iC60N, 3P, 40A, B Charakteristik","Schneider","A9F03340","6kA",40,2]
["LS-Schalter iC60N, 3P, 50A, B Charakteristik","Schneider","A9F03350","6kA",50,4]
["LS-Schalter iC60N, 3P, 63A, B Charakteristik","Schneider","A9F03363","6kA",63,5.6]
[]
["LS-Schalter  3P+N","Schneider","Acti9","6kA"]
["LS-Schalter iC60N, 3P+N, 6A, B Charakteristik","Schneider","A9F03706","6kA",6,1.3]
["LS-Schalter iC60N, 3P+N, 10A, B Charakteristik","Schneider","A9F03710","6kA",10,2]
["LS-Schalter iC60N, 3P+N, 13A, B Charakteristik","Schneider","A9F03713","6kA",13,2]
["LS-Schalter iC60N, 3P+N, 16A, B Charakteristik","Schneider","A9F03716","6kA",16,2.1]
["LS-Schalter iC60N, 3P+N, 20A, B Charakteristik","Schneider","A9F03720","6kA",20,2.2000000000000002]
["LS-Schalter iC60N, 3P+N, 25A, B Charakteristik","Schneider","A9F03725","6kA",25,2.7]
["LS-Schalter iC60N, 3P+N, 32A, B Charakteristik","Schneider","A9F03732","6kA",32,2.8]
["LS-Schalter iC60N, 3P+N, 40A, B Charakteristik","Schneider","A9F03740","6kA",40,2]
["LS-Schalter iC60N, 3P+N, 50A, B Charakteristik","Schneider","A9F03750","6kA",50,4]
["LS-Schalter iC60N, 3P+N, 63A, B Charakteristik","Schneider","A9F03763","6kA",63,5.6]
[]
["LS-Schalter  4P","Schneider","Acti9","6kA"]
["LS-Schalter iC60N, 4P, 6A, B Charakteristik","Schneider","A9F03406","6kA",6,1.3]
["LS-Schalter iC60N, 4P, 10A, B Charakteristik","Schneider","A9F03410","6kA",10,2]
["LS-Schalter iC60N, 4P, 13A, B Charakteristik","Schneider","A9F03413","6kA",13,2]
["LS-Schalter iC60N, 4P, 16A, B Charakteristik","Schneider","A9F03416","6kA",16,2.1]
["LS-Schalter iC60N, 4P, 20A, B Charakteristik","Schneider","A9F03420","6kA",20,2.2000000000000002]
["LS-Schalter iC60N, 4P, 25A, B Charakteristik","Schneider","A9F03425","6kA",25,2.7]
["LS-Schalter iC60N, 4P, 32A, B Charakteristik","Schneider","A9F03432","6kA",32,2.8]
["LS-Schalter iC60N, 4P, 40A, B Charakteristik","Schneider","A9F03440","6kA",40,2]
["LS-Schalter iC60N, 4P, 50A, B Charakteristik","Schneider","A9F03450","6kA",50,4]
["LS-Schalter iC60N, 4P, 63A, B Charakteristik","Schneider","A9F03463","6kA",63,5.6]
[]
["LS-Schalter  1P","Schneider","Acti9","6kA"]
["LS-Schalter iC60N, 1P, 1A, C Charakteristik","Schneider","A9F04101","6kA",1,2.2999999999999998]
["LS-Schalter iC60N, 1P, 2A, C Charakteristik","Schneider","A9F04102","6kA",2,1.9]
["LS-Schalter iC60N, 1P, 3A, C Charakteristik","Schneider","A9F04103","6kA",3,2.2000000000000002]
["LS-Schalter iC60N, 1P, 4A, C Charakteristik","Schneider","A9F04104","6kA",4,2.4]
["LS-Schalter iC60N, 1P, 6A, C Charakteristik","Schneider","A9F04106","6kA",6,1.3]
["LS-Schalter iC60N, 1P, 10A, C Charakteristik","Schneider","A9F04110","6kA",10,2]
["LS-Schalter iC60N, 1P, 13A, C Charakteristik","Schneider","A9F04113","6kA",13,2]
["LS-Schalter iC60N, 1P, 16A, C Charakteristik","Schneider","A9F04116","6kA",16,2.1]
["LS-Schalter iC60N, 1P, 20A, C Charakteristik","Schneider","A9F04120","6kA",20,2.2000000000000002]
["LS-Schalter iC60N, 1P, 25A, C Charakteristik","Schneider","A9F04125","6kA",25,2.7]
["LS-Schalter iC60N, 1P, 32A, C Charakteristik","Schneider","A9F04132","6kA",32,2.8]
["LS-Schalter iC60N, 1P, 40A, C Charakteristik","Schneider","A9F04140","6kA",40,2]
["LS-Schalter iC60N, 1P, 50A, C Charakteristik","Schneider","A9F04150","6kA",50,4]
["LS-Schalter iC60N, 1P, 63A, C Charakteristik","Schneider","A9F04163","6kA",63,5.6]
[]
["LS-Schalter  1P+N","Schneider","Acti9","6kA"]
["LS-Schalter iC60N, 1P+N, 1A, C Charakteristik","Schneider","A9F04601","6kA",1,2.2999999999999998]
["LS-Schalter iC60N, 1P+N, 2A, C Charakteristik","Schneider","A9F04602","6kA",2,1.9]
["LS-Schalter iC60N, 1P+N, 3A, C Charakteristik","Schneider","A9F04603","6kA",3,2.2000000000000002]
["LS-Schalter iC60N, 1P+N, 4A, C Charakteristik","Schneider","A9F04604","6kA",4,2.4]
["LS-Schalter iC60N, 1P+N, 6A, C Charakteristik","Schneider","A9F04606","6kA",6,1.3]
["LS-Schalter iC60N, 1P+N, 10A, C Charakteristik","Schneider","A9F04610","6kA",10,2]
["LS-Schalter iC60N, 1P+N, 13A, C Charakteristik","Schneider","A9F04613","6kA",13,2]
["LS-Schalter iC60N, 1P+N, 16A, C Charakteristik","Schneider","A9F04616","6kA",16,2.1]
["LS-Schalter iC60N, 1P+N, 20A, C Charakteristik","Schneider","A9F04620","6kA",20,2.2000000000000002]
["LS-Schalter iC60N, 1P+N, 25A, C Charakteristik","Schneider","A9F04625","6kA",25,2.7]
["LS-Schalter iC60N, 1P+N, 32A, C Charakteristik","Schneider","A9F04632","6kA",32,2.8]
["LS-Schalter iC60N, 1P+N, 40A, C Charakteristik","Schneider","A9F04640","6kA",40,2]
["LS-Schalter iC60N, 1P+N, 50A, C Charakteristik","Schneider","A9F04650","6kA",50,4]
["LS-Schalter iC60N, 1P+N, 63A, C Charakteristik","Schneider","A9F04663","6kA",63,5.6]
[]
["LS-Schalter  2P","Schneider","Acti9","6kA"]
["LS-Schalter iC60N, 2P, 1A, C Charakteristik","Schneider","A9F04201","6kA",1,2.2999999999999998]
["LS-Schalter iC60N, 2P, 2A, C Charakteristik","Schneider","A9F04202","6kA",2,1.9]
["LS-Schalter iC60N, 2P, 3A, C Charakteristik","Schneider","A9F04203","6kA",3,2.2000000000000002]
["LS-Schalter iC60N, 2P, 4A, C Charakteristik","Schneider","A9F04204","6kA",4,2.4]
["LS-Schalter iC60N, 2P, 6A, C Charakteristik","Schneider","A9F04206","6kA",6,1.3]
["LS-Schalter iC60N, 2P, 10A, C Charakteristik","Schneider","A9F04210","6kA",10,2]
["LS-Schalter iC60N, 2P, 13A, C Charakteristik","Schneider","A9F04213","6kA",13,2]
["LS-Schalter iC60N, 2P, 16A, C Charakteristik","Schneider","A9F04216","6kA",16,2.1]
["LS-Schalter iC60N, 2P, 20A, C Charakteristik","Schneider","A9F04220","6kA",20,2.2000000000000002]
["LS-Schalter iC60N, 2P, 25A, C Charakteristik","Schneider","A9F04225","6kA",25,2.7]
["LS-Schalter iC60N, 2P, 32A, C Charakteristik","Schneider","A9F04232","6kA",32,2.8]
["LS-Schalter iC60N, 2P, 40A, C Charakteristik","Schneider","A9F04240","6kA",40,2]
["LS-Schalter iC60N, 2P, 50A, C Charakteristik","Schneider","A9F04250","6kA",50,4]
["LS-Schalter iC60N, 2P, 63A, C Charakteristik","Schneider","A9F04263","6kA",63,5.6]
[]
["LS-Schalter  3P","Schneider","Acti9","6kA"]
["LS-Schalter iC60N, 3P, 1A, C Charakteristik","Schneider","A9F04301","6kA",1,2.2999999999999998]
["LS-Schalter iC60N, 3P, 2A, C Charakteristik","Schneider","A9F04302","6kA",2,1.9]
["LS-Schalter iC60N, 3P, 3A, C Charakteristik","Schneider","A9F04303","6kA",3,2.2000000000000002]
["LS-Schalter iC60N, 3P, 4A, C Charakteristik","Schneider","A9F04304","6kA",4,2.4]
["LS-Schalter iC60N, 3P, 6A, C Charakteristik","Schneider","A9F04306","6kA",6,1.3]
["LS-Schalter iC60N, 3P, 10A, C Charakteristik","Schneider","A9F04310","6kA",10,2]
["LS-Schalter iC60N, 3P, 13A, C Charakteristik","Schneider","A9F04313","6kA",13,2]
["LS-Schalter iC60N, 3P, 16A, C Charakteristik","Schneider","A9F04316","6kA",16,2.1]
["LS-Schalter iC60N, 3P, 20A, C Charakteristik","Schneider","A9F04320","6kA",20,2.2000000000000002]
["LS-Schalter iC60N, 3P, 25A, C Charakteristik","Schneider","A9F04325","6kA",25,2.7]
["LS-Schalter iC60N, 3P, 32A, C Charakteristik","Schneider","A9F04332","6kA",32,2.8]
["LS-Schalter iC60N, 3P, 40A, C Charakteristik","Schneider","A9F04340","6kA",40,2]
["LS-Schalter iC60N, 3P, 50A, C Charakteristik","Schneider","A9F04350","6kA",50,4]
["LS-Schalter iC60N, 3P, 63A, C Charakteristik","Schneider","A9F04363","6kA",63,5.6]
[]
["LS-Schalter  3P+N","Schneider","Acti9","6kA"]
["LS-Schalter iC60N, 3P+N, 1A, C Charakteristik","Schneider","A9F04701","6kA",1,2.2999999999999998]
["LS-Schalter iC60N, 3P+N, 2A, C Charakteristik","Schneider","A9F04702","6kA",2,1.9]
["LS-Schalter iC60N, 3P+N, 3A, C Charakteristik","Schneider","A9F04703","6kA",3,2.2000000000000002]
["LS-Schalter iC60N, 3P+N, 4A, C Charakteristik","Schneider","A9F04704","6kA",4,2.4]
["LS-Schalter iC60N, 3P+N, 6A, C Charakteristik","Schneider","A9F04706","6kA",6,1.3]
["LS-Schalter iC60N, 3P+N, 10A, C Charakteristik","Schneider","A9F04710","6kA",10,2]
["LS-Schalter iC60N, 3P+N, 13A, C Charakteristik","Schneider","A9F04713","6kA",13,2]
["LS-Schalter iC60N, 3P+N, 16A, C Charakteristik","Schneider","A9F04716","6kA",16,2.1]
["LS-Schalter iC60N, 3P+N, 20A, C Charakteristik","Schneider","A9F04720","6kA",20,2.2000000000000002]
["LS-Schalter iC60N, 3P+N, 25A, C Charakteristik","Schneider","A9F04725","6kA",25,2.7]
["LS-Schalter iC60N, 3P+N, 32A, C Charakteristik","Schneider","A9F04732","6kA",32,2.8]
["LS-Schalter iC60N, 3P+N, 40A, C Charakteristik","Schneider","A9F04740","6kA",40,2]
["LS-Schalter iC60N, 3P+N, 50A, C Charakteristik","Schneider","A9F04750","6kA",50,4]
["LS-Schalter iC60N, 3P+N, 63A, C Charakteristik","Schneider","A9F04763","6kA",63,5.6]
[]
["LS-Schalter  4P","Schneider","Acti9","6kA"]
["LS-Schalter iC60N, 4P, 1A, C Charakteristik","Schneider","A9F04401","6kA",1,2.2999999999999998]
["LS-Schalter iC60N, 4P, 2A, C Charakteristik","Schneider","A9F04402","6kA",2,1.9]
["LS-Schalter iC60N, 4P, 3A, C Charakteristik","Schneider","A9F04403","6kA",3,2.2000000000000002]
["LS-Schalter iC60N, 4P, 4A, C Charakteristik","Schneider","A9F04404","6kA",4,2.4]
["LS-Schalter iC60N, 4P, 6A, C Charakteristik","Schneider","A9F04406","6kA",6,1.3]
["LS-Schalter iC60N, 4P, 10A, C Charakteristik","Schneider","A9F04410","6kA",10,2]
["LS-Schalter iC60N, 4P, 13A, C Charakteristik","Schneider","A9F04413","6kA",13,2]
["LS-Schalter iC60N, 4P, 16A, C Charakteristik","Schneider","A9F04416","6kA",16,2.1]
["LS-Schalter iC60N, 4P, 20A, C Charakteristik","Schneider","A9F04420","6kA",20,2.2000000000000002]
["LS-Schalter iC60N, 4P, 25A, C Charakteristik","Schneider","A9F04425","6kA",25,2.7]
["LS-Schalter iC60N, 4P, 32A, C Charakteristik","Schneider","A9F04432","6kA",32,2.8]
["LS-Schalter iC60N, 4P, 40A, C Charakteristik","Schneider","A9F04440","6kA",40,2]
["LS-Schalter iC60N, 4P, 50A, C Charakteristik","Schneider","A9F04450","6kA",50,4]
["LS-Schalter iC60N, 4P, 63A, C Charakteristik","Schneider","A9F04463","6kA",63,5.6]
[]
["LS-Schalter  1P","Schneider","Acti9","6kA"]
["LS-Schalter iC60N, 1P, 1A, D Charakteristik","Schneider","A9F05101","6kA",1,2.2999999999999998]
["LS-Schalter iC60N, 1P, 2A, D Charakteristik","Schneider","A9F05102","6kA",2,1.9]
["LS-Schalter iC60N, 1P, 3A, D Charakteristik","Schneider","A9F05103","6kA",3,2.2000000000000002]
["LS-Schalter iC60N, 1P, 4A, D Charakteristik","Schneider","A9F05104","6kA",4,2.4]
["LS-Schalter iC60N, 1P, 6A, D Charakteristik","Schneider","A9F05106","6kA",6,1.3]
["LS-Schalter iC60N, 1P, 10A, D Charakteristik","Schneider","A9F05110","6kA",10,2]
["LS-Schalter iC60N, 1P, 13A, D Charakteristik","Schneider","A9F05113","6kA",13,2]
["LS-Schalter iC60N, 1P, 16A, D Charakteristik","Schneider","A9F05116","6kA",16,2.1]
["LS-Schalter iC60N, 1P, 20A, D Charakteristik","Schneider","A9F05120","6kA",20,2.2000000000000002]
["LS-Schalter iC60N, 1P, 25A, D Charakteristik","Schneider","A9F05125","6kA",25,2.7]
["LS-Schalter iC60N, 1P, 32A, D Charakteristik","Schneider","A9F05132","6kA",32,2.8]
["LS-Schalter iC60N, 1P, 40A, D Charakteristik","Schneider","A9F05140","6kA",40,2]
["LS-Schalter iC60N, 1P, 50A, D Charakteristik","Schneider","A9F05150","6kA",50,4]
["LS-Schalter iC60N, 1P, 63A, D Charakteristik","Schneider","A9F05163","6kA",63,5.6]
[]
["LS-Schalter  2P","Schneider","Acti9","6kA"]
["LS-Schalter iC60N, 2P, 1A, D Charakteristik","Schneider","A9F05201","6kA",1,2.2999999999999998]
["LS-Schalter iC60N, 2P, 2A, D Charakteristik","Schneider","A9F05202","6kA",2,1.9]
["LS-Schalter iC60N, 2P, 3A, D Charakteristik","Schneider","A9F05203","6kA",3,2.2000000000000002]
["LS-Schalter iC60N, 2P, 4A, D Charakteristik","Schneider","A9F05204","6kA",4,2.4]
["LS-Schalter iC60N, 2P, 6A, D Charakteristik","Schneider","A9F05206","6kA",6,1.3]
["LS-Schalter iC60N, 2P, 10A, D Charakteristik","Schneider","A9F05210","6kA",10,2]
["LS-Schalter iC60N, 2P, 13A, D Charakteristik","Schneider","A9F05213","6kA",13,2]
["LS-Schalter iC60N, 2P, 16A, D Charakteristik","Schneider","A9F05216","6kA",16,2.1]
["LS-Schalter iC60N, 2P, 20A, D Charakteristik","Schneider","A9F05220","6kA",20,2.2000000000000002]
["LS-Schalter iC60N, 2P, 25A, D Charakteristik","Schneider","A9F05225","6kA",25,2.7]
["LS-Schalter iC60N, 2P, 32A, D Charakteristik","Schneider","A9F05232","6kA",32,2.8]
["LS-Schalter iC60N, 2P, 40A, D Charakteristik","Schneider","A9F05240","6kA",40,2]
["LS-Schalter iC60N, 2P, 50A, D Charakteristik","Schneider","A9F05250","6kA",50,4]
["LS-Schalter iC60N, 2P, 63A, D Charakteristik","Schneider","A9F05263","6kA",63,5.6]
[]
["LS-Schalter  3P","Schneider","Acti9","6kA"]
["LS-Schalter iC60N, 3P, 1A, D Charakteristik","Schneider","A9F05301","6kA",1,2.2999999999999998]
["LS-Schalter iC60N, 3P, 2A, D Charakteristik","Schneider","A9F05302","6kA",2,1.9]
["LS-Schalter iC60N, 3P, 3A, D Charakteristik","Schneider","A9F05303","6kA",3,2.2000000000000002]
["LS-Schalter iC60N, 3P, 4A, D Charakteristik","Schneider","A9F05304","6kA",4,2.4]
["LS-Schalter iC60N, 3P, 6A, D Charakteristik","Schneider","A9F05306","6kA",6,1.3]
["LS-Schalter iC60N, 3P, 10A, D Charakteristik","Schneider","A9F05310","6kA",10,2]
["LS-Schalter iC60N, 3P, 13A, D Charakteristik","Schneider","A9F05313","6kA",13,2]
["LS-Schalter iC60N, 3P, 16A, D Charakteristik","Schneider","A9F05316","6kA",16,2.1]
["LS-Schalter iC60N, 3P, 20A, D Charakteristik","Schneider","A9F05320","6kA",20,2.2000000000000002]
["LS-Schalter iC60N, 3P, 25A, D Charakteristik","Schneider","A9F05325","6kA",25,2.7]
["LS-Schalter iC60N, 3P, 32A, D Charakteristik","Schneider","A9F05332","6kA",32,2.8]
["LS-Schalter iC60N, 3P, 40A, D Charakteristik","Schneider","A9F05340","6kA",40,2]
["LS-Schalter iC60N, 3P, 50A, D Charakteristik","Schneider","A9F05350","6kA",50,4]
["LS-Schalter iC60N, 3P, 63A, D Charakteristik","Schneider","A9F05363","6kA",63,5.6]
[]
["LS-Schalter  4P","Schneider","Acti9","6kA"]
["LS-Schalter iC60N, 4P, 1A, D Charakteristik","Schneider","A9F05401","6kA",1,2.2999999999999998]
["LS-Schalter iC60N, 4P, 2A, D Charakteristik","Schneider","A9F05402","6kA",2,1.9]
["LS-Schalter iC60N, 4P, 3A, D Charakteristik","Schneider","A9F05403","6kA",3,2.2000000000000002]
["LS-Schalter iC60N, 4P, 4A, D Charakteristik","Schneider","A9F05404","6kA",4,2.4]
["LS-Schalter iC60N, 4P, 6A, D Charakteristik","Schneider","A9F05406","6kA",6,1.3]
["LS-Schalter iC60N, 4P, 10A, D Charakteristik","Schneider","A9F05410","6kA",10,2]
["LS-Schalter iC60N, 4P, 13A, D Charakteristik","Schneider","A9F05413","6kA",13,2]
["LS-Schalter iC60N, 4P, 16A, D Charakteristik","Schneider","A9F05416","6kA",16,2.1]
["LS-Schalter iC60N, 4P, 20A, D Charakteristik","Schneider","A9F05420","6kA",20,2.2000000000000002]
["LS-Schalter iC60N, 4P, 25A, D Charakteristik","Schneider","A9F05425","6kA",25,2.7]
["LS-Schalter iC60N, 4P, 32A, D Charakteristik","Schneider","A9F05432","6kA",32,2.8]
["LS-Schalter iC60N, 4P, 40A, D Charakteristik","Schneider","A9F05440","6kA",40,2]
["LS-Schalter iC60N, 4P, 50A, D Charakteristik","Schneider","A9F05450","6kA",50,4]
["LS-Schalter iC60N, 4P, 63A, D Charakteristik","Schneider","A9F05463","6kA",63,5.6]

{"sheet":"Tabelle 101 (61439-2, -3)","index":4,"n_rows":17,"n_cols":7,"rows_kept":17,"cut":false,"hidden":false,"merged":[[16,1,16,2],[16,5,16,6]]}
["Tabelle Stromkreis - Belastungsfaktor",null,null,null,"Tabelle Stromkreis - Belastungsfaktor"]
[null,null,"DIN EN 61439-2 ; PSC",null,null,null,"DIN EN 61439-3 ; DBO"]
[]
[null,"Anzahl Stromkreise","angenommener\nBelastungsfaktor",null,null,"Anzahl Stromkreise","angenommener\nBelastungsfaktor"]
[null,1,1,null,null,1,1]
[null,2,0.9,null,null,2,0.8]
[null,3,0.9,null,null,3,0.8]
[null,4,0.8,null,null,4,0.7]
[null,5,0.8,null,null,5,0.7]
[null,6,0.7,null,null,6,0.6]
[null,7,0.7,null,null,7,0.6]
[null,8,0.7,null,null,8,0.6]
[null,9,0.7,null,null,9,0.9]
[null,10,0.60000000000000009,null,null,10,0.5]
[null,">10",0.60000000000000009,null,null,">10",0.5]
[]
["Erläuterung:","Durch gegenseitige Erwärmung der Einbaugeräte\nmuss eine Leistungsreduzierung in Form\neines Belastungsfaktors bestimmt werden.",null,null,"Erläuterung:","Durch gegenseitige Erwärmung der Einbaugeräte\nmuss eine Leistungsreduzierung in Form\neines Belastungsfaktors bestimmt werden."]

{"sheet":"Legende","index":5,"n_rows":30,"n_cols":2,"rows_kept":30,"cut":false,"hidden":false,"merged":[]}
[]
["Legende:"]
[null,"Die Derating-Kurve beschreibt die maximale zulässige Verlustleistung eines elektrischen oder elektronischen Bauteiles in Abhängigkeit von seiner Umgebungstemperatur."]
[null,"In der Praxis wird die Leistungsreduktion und damit die Berücksichtigung der Derating-Kurve oft nicht vom Bauteil oder Gerät selbst vorgenommen,\nsondern ist Aufgabe des Benutzers, sofern sie nicht bereits bei der Entwicklung des Gesamtproduktes berücksichtigt wurde. "]
[]
[null,"RDF = Bemessungsbelastungsfaktor\nUnter der Voraussetzung, dass die Belastung der Einspeisung deren Bemessungsstrom nicht überschreitet, ist der Belastungsfaktor der Anteil der jeweiligen\nBemessungsströme, den jede Kombination von abgehenden Stromkreisen gleichzeitig und dauerhaft führen kann, ohne die Schaltgerätekombination zu überlasten."]
[]
[]
[]
[null,"Festlegung: Betriebsbedingungen"]
[]
[]
[]
[]
[]
[]
[]
[]
[]
[]
[]
[]
[]
[]
[]
[]
[]
[]
[]
[null,"Sammelschienen Verluste für 3-poliges System"]